"Merchandising Type Category","Detailed Merchant Category","Supplier","Purchase Details","Transaction Date","Value","Department"
"Business Services","Advertising Services","Facebk *5n6lkyeyd2","Supplies and Services related expenditure","01/01/2021","29.82","Director of Corporate Services"
"Business Services","Business Services - Default","Indeed Tel+35312545907","Employees related expenditure","01/01/2021","25.58","Director of Children's Services and Education"
"Digital Goods","Digital Goods - Media, Books, Movies, Music","Deezer Gwjrqe","Supplies and Services related expenditure","01/01/2021","14.99","Director of Children's Services and Education"
"Type of Retail Store","Grocery Stores/Supermarkets","Tesco Stores 4579","Supplies and Services related expenditure","01/01/2021","15","Director of Children's Services and Education"
"Type of Retail Store","Grocery Stores/Supermarkets","Tesco Stores 4579","Supplies and Services related expenditure","01/01/2021","2.5","Director of Children's Services and Education"
"Type of Retail Store","Grocery Stores/Supermarkets","Tesco Stores 4579","Supplies and Services related expenditure","01/01/2021","25.58","Director of Children's Services and Education"
"Eating And Drinking Places","Fast Food Restaurants","McDonalds","Supplies and Services related expenditure","01/01/2021","11.77","Director of Children's Services and Education"
"Eating And Drinking Places","Fast Food Restaurants","McDonalds","Supplies and Services related expenditure","01/01/2021","1.75","Director of Children's Services and Education"
"Hotels And Motels","Premier Travel Inns","Premier Inn44025605","Agency and Third Party Payments related expenditure","01/01/2021","100","Director of Housing, Neighbourhood and Building Services"
"Hotels And Motels","Travelodge","Travelodge Gb0000","Agency and Third Party Payments related expenditure","01/01/2021","101.96","Director of Housing, Neighbourhood and Building Services"
"Hotels And Motels","Travelodge","Travelodge Gb0000","Agency and Third Party Payments related expenditure","01/01/2021","203.93","Director of Housing, Neighbourhood and Building Services"
"Type of Retail Store","Record Shops","Amazon Music","Supplies and Services related expenditure","01/01/2021","14.99","Director of Adult Services"
"Eating And Drinking Places","Eating Places/Restaurants","Www.Takeaway.Je","Agency and Third Party Payments related expenditure","01/01/2021","39.2","Director of Children's Services and Education"
"Miscellaneous","Continuity/Subscription Mercht","Amazon Prime","Supplies and Services related expenditure","01/01/2021","6.66","Director of Children's Services and Education"
"Type of Retail Store","Grocery Stores/Supermarkets","Tesco Store 3055","Supplies and Services related expenditure","01/01/2021","-16.25","Director of Regeneration"
"Type of Retail Store","Grocery Stores/Supermarkets","Tesco Store 3055","Supplies and Services related expenditure","01/01/2021","16.25","Director of Regeneration"
"Eating And Drinking Places","Fast Food Restaurants","McDonalds","Agency and Third Party Payments related expenditure","01/01/2021","5.56","Director of Children's Services and Education"
"Eating And Drinking Places","Fast Food Restaurants","McDonalds","Agency and Third Party Payments related expenditure","01/01/2021","1.15","Director of Children's Services and Education"
"Type of Retail Store","Grocery Stores/Supermarkets","Wm Morrisons Store","Supplies and Services related expenditure","02/01/2021","7.25","Director of Children's Services and Education"
"Miscellaneous","Continuity/Subscription Mercht","Amazon Prime","Supplies and Services related expenditure","02/01/2021","6.66","Director of Children's Services and Education"
"Facilities/Repair Supplies","Lumber/Build. Supply Stores","Screwfix Portsmouth","Premises related expenditure","02/01/2021","7.48","Director of Housing, Neighbourhood and Building Services"
"Eating And Drinking Places","Fast Food Restaurants","Just Eat","Agency and Third Party Payments related expenditure","02/01/2021","39.4","Director of Children's Services and Education"
"Equipment And Furniture","Household Appliance Stores","Machine Mart Ltd","Supplies and Services related expenditure","02/01/2021","24.99","Director of Portsmouth International Port"
"Other Supplies","Misc Speciality Retail","Amznbusiness","Supplies and Services related expenditure","02/01/2021","79.99","Director of Housing, Neighbourhood and Building Services"
"Other Supplies","Misc Speciality Retail","Amznbusiness","Premises related expenditure","02/01/2021","28.33","Director of Adult Services"
"Utility","Phone Serv/Equip Utility","Giffgaff","Supplies and Services related expenditure","02/01/2021","20","Director of Children's Services and Education"
"Digital Goods","Digital Goods - Games","Microsoft*xbox","Agency and Third Party Payments related expenditure","02/01/2021","13.99","Director of Children's Services and Education"
"Digital Goods","Digital Goods - Games","Microsoft*xbox","Agency and Third Party Payments related expenditure","02/01/2021","39.99","Director of Children's Services and Education"
"Other Supplies","Misc Speciality Retail","Amznmktplace","Supplies and Services related expenditure","02/01/2021","12.48","Director of Regeneration"
"Facilities/Repair Supplies","Lumber/Build. Supply Stores","Screwfix Portsmouth","Supplies and Services related expenditure","02/01/2021","29.98","Director of Regeneration"
"Facilities/Repair Supplies","Home Supply Warehouse Stores","B & Q 1260","Premises related expenditure","02/01/2021","34.59","Director of Children's Services and Education"
"Digital Goods","Digital Goods - Games","Playstationnetwork","Agency and Third Party Payments related expenditure","02/01/2021","3.99","Director of Children's Services and Education"
"Type of Retail Store","Grocery Stores/Supermarkets","Tesco Stores 5153","Supplies and Services related expenditure","02/01/2021","18.7","Director of Children's Services and Education"
"Type of Retail Store","Grocery Stores/Supermarkets","Tesco Stores 4579","Supplies and Services related expenditure","02/01/2021","2.58","Director of Children's Services and Education"
"Type of Retail Store","Grocery Stores/Supermarkets","Tesco Stores 4579","Supplies and Services related expenditure","02/01/2021","37.7","Director of Children's Services and Education"
"Type of Retail Store","Grocery Stores/Supermarkets","Tesco Stores 4579","Supplies and Services related expenditure","02/01/2021","3.71","Director of Children's Services and Education"
"Type of Retail Store","Grocery Stores/Supermarkets","Tesco Stores 4579","Supplies and Services related expenditure","02/01/2021","44.2","Director of Children's Services and Education"
"Utility","Computer Network/Info Svcs","Siteground Hosting","Supplies and Services related expenditure","03/01/2021","26.9","Capital - Communities & Central Services"
"Other Supplies","Misc Speciality Retail","Amznmktplace","Supplies and Services related expenditure","03/01/2021","7.23","Director of Children's Services and Education"
"Hotels And Motels","Travelodge","Travelodge Gb0000","Agency and Third Party Payments related expenditure","03/01/2021","33.98","Director of Housing, Neighbourhood and Building Services"
"Other Supplies","Misc Speciality Retail","Amznmktplace Amazon.Co.Uk","Agency and Third Party Payments related expenditure","03/01/2021","24.56","Director of Children's Services and Education"
"Type of Retail Store","Grocery Stores/Supermarkets","Www.Iceland.Co.Uk","Supplies and Services related expenditure","03/01/2021","-10","Director of Adult Services"
"Type of Retail Store","Grocery Stores/Supermarkets","Www.Iceland.Co.Uk","Supplies and Services related expenditure","03/01/2021","71.28","Director of Adult Services"
"Eating And Drinking Places","Fast Food Restaurants","Starbucks Coffee","Supplies and Services related expenditure","03/01/2021","3.33","Director of Children's Services and Education"
"Eating And Drinking Places","Fast Food Restaurants","Starbucks Coffee","Supplies and Services related expenditure","03/01/2021","3.5","Director of Children's Services and Education"
"Type of Retail Store","Grocery Stores/Supermarkets","Tesco Stores 4579","Supplies and Services related expenditure","03/01/2021","4.97","Director of Children's Services and Education"
"Type of Retail Store","Grocery Stores/Supermarkets","Tesco Stores 4579","Supplies and Services related expenditure","03/01/2021","11.84","Director of Children's Services and Education"
"Type of Retail Store","Grocery Stores/Supermarkets","Tesco Stores 6577","Supplies and Services related expenditure","03/01/2021","30","Director of Children's Services and Education"
"Type of Retail Store","Grocery Stores/Supermarkets","Sainsburys S/mkt","Premises related expenditure","03/01/2021","10.25","Director of Children's Services and Education"
"Type of Retail Store","Grocery Stores/Supermarkets","Sainsburys S/mkt","Premises related expenditure","03/01/2021","0.83","Director of Children's Services and Education"
"Type of Retail Store","Grocery Stores/Supermarkets","Sainsburys S/mkt","Supplies and Services related expenditure","03/01/2021","126.39","Director of Children's Services and Education"
"Other Supplies","Misc Speciality Retail","Amz*sports Direct","Supplies and Services related expenditure","03/01/2021","-32.99","Director of Children's Services and Education"
"Other Supplies","Misc Speciality Retail","Amznbusiness","Supplies and Services related expenditure","03/01/2021","254.62","Director of Corporate Services"
"Type of Retail Store","Grocery Stores/Supermarkets","Tesco Stores 4579","Supplies and Services related expenditure","03/01/2021","10.81","Director of Children's Services and Education"
"Digital Goods","Digital Goods - Games","Microsoft*xbox","Agency and Third Party Payments related expenditure","03/01/2021","17.99","Director of Children's Services and Education"
"Type of Retail Store","Sporting Goods Stores","Www.Millets.Co.Uk","Supplies and Services related expenditure","03/01/2021","308","Director of Housing, Neighbourhood and Building Services"
"Facilities/Repair Supplies","Lumber/Build. Supply Stores","Screwfix Direct","Supplies and Services related expenditure","03/01/2021","18.32","Director of Regeneration"
"Other Supplies","Misc Speciality Retail","Poundwise Portchester","Supplies and Services related expenditure","03/01/2021","27","Director of Regeneration"
"Facilities/Repair Supplies","Lumber/Build. Supply Stores","Screwfix Direct","Supplies and Services related expenditure","03/01/2021","35.8","Director of Regeneration"
"Medical","Lab/Med/Hospital Equipment","Wightman & Parrish","Premises related expenditure","04/01/2021","76.08","Director of Housing, Neighbourhood and Building Services"
"Medical","Lab/Med/Hospital Equipment","Wightman & Parrish","Premises related expenditure","04/01/2021","1031.1","Director of Housing, Neighbourhood and Building Services"
"Government Service","Govt Serv - Default","Portsmouth City Co","Supplies and Services related expenditure","04/01/2021","2.92","Director of Children's Services and Education"
"Freight/Courier/Warehouse Svcs","Public Warehousing","Big Yellow - Portsmout","Agency and Third Party Payments related expenditure","04/01/2021","-53.34","Director of Housing, Neighbourhood and Building Services"
"Hotels And Motels","Lodging/Hotels/Motels/Resorts","Old Victory House","Agency and Third Party Payments related expenditure","04/01/2021","1028.57","Director of Housing, Neighbourhood and Building Services"
"Hotels And Motels","Travelodge","Travelodge Gb0000","Agency and Third Party Payments related expenditure","04/01/2021","-157.5","Director of Housing, Neighbourhood and Building Services"
"Hotels And Motels","Travelodge","Travelodge Gb0000","Agency and Third Party Payments related expenditure","04/01/2021","-618.71","Director of Housing, Neighbourhood and Building Services"
"Business To Business Facility/","Hardware Equipment/Supplies","Croma Locksmiths & Sec","Supplies and Services related expenditure","04/01/2021","8","Director of Housing, Neighbourhood and Building Services"
"Business To Business Facility/","Hardware Equipment/Supplies","Croma Locksmiths & Sec","Supplies and Services related expenditure","04/01/2021","187.39","Director of Housing, Neighbourhood and Building Services"
"Type of Retail Store","Grocery Stores/Supermarkets","Tesco Stores 4611","Supplies and Services related expenditure","04/01/2021","50","Director of Children's Services and Education"
"Freight/Courier/Warehouse Svcs","Motor Freight Carriers","Zero Waste Group Ltd","Supplies and Services related expenditure","04/01/2021","420","Director of Children's Services and Education"
"Government Service","Govt Serv - Default","Portsmouth City Co","Transport related expenditure","04/01/2021","63.33","Director of Children's Services and Education"
"Facilities/Repair Supplies","Lawn/Garden Supply/Nursery","Www.Tudorenvironmental","Supplies and Services related expenditure","04/01/2021","84.9","Director of Culture, Leisure & Regulatory Services"
"Equipment And Furniture","Equip/Furn Rent/Lease Serv","Rowlands Plant Services L","Supplies and Services related expenditure","04/01/2021","201.67","Director of Culture, Leisure & Regulatory Services"
"Facilities/Repair Services","Landscape/Horticultural Se","Cpa Horticulture Ltd","Supplies and Services related expenditure","04/01/2021","520","Director of Culture, Leisure & Regulatory Services"
"Type of Retail Store","Grocery Stores/Supermarkets","Asda Groceries Online","Supplies and Services related expenditure","04/01/2021","-9.42","Director of Children's Services and Education"
"Type of Retail Store","Grocery Stores/Supermarkets","Asda Groceries Online","Supplies and Services related expenditure","04/01/2021","89.22","Director of Children's Services and Education"
"Other Supplies","Misc Speciality Retail","Amznmktplace","Supplies and Services related expenditure","04/01/2021","13.33","Director of Children's Services and Education"
"Type of Retail Store","Sports/Riding Apparel Store","Nike","Supplies and Services related expenditure","04/01/2021","120.79","Director of Children's Services and Education"
"Other Supplies","Misc Speciality Retail","Amznmktplace","Supplies and Services related expenditure","04/01/2021","49.11","Director of Adult Services"
"Government Service","Govt Serv - Default","Portsmouth City Co","Transport related expenditure","04/01/2021","63.33","Director of Adult Services"
"Medical","Lab/Med/Hospital Equipment","Incchoice","Supplies and Services related expenditure","04/01/2021","39.19","Director of Adult Services"
"Type of Retail Store","Grocery Stores/Supermarkets","Tesco Gift Card","Supplies and Services related expenditure","04/01/2021","80","Director of Adult Services"
"Facilities/Repair Supplies","Home Supply Warehouse Stores","B & Q 1260","Premises related expenditure","04/01/2021","20.42","Director of Housing, Neighbourhood and Building Services"
"Business To Business Facility/","Industrial Supplies - Def","Arco Limited (Ahpp)","Supplies and Services related expenditure","04/01/2021","71.3","Director of Housing, Neighbourhood and Building Services"
"Facilities/Repair Supplies","Home Supply Warehouse Stores","B & Q 1260","Premises related expenditure","04/01/2021","13.31","Director of Children's Services and Education"
"Government Service","Schools - Default","Teachit.Co.Uk","Supplies and Services related expenditure","04/01/2021","12.5","Director of Children's Services and Education"
"Government Service","Govt Serv - Default","Pcc Internet Payment","Supplies and Services related expenditure","04/01/2021","11","Director of Children's Services and Education"
"Business Services","Photo Studios","Globalfirecreative","Supplies and Services related expenditure","04/01/2021","1125","Director of Culture, Leisure & Regulatory Services"
"Miscellaneous","Continuity/Subscription Mercht","Amazon Prime","Supplies and Services related expenditure","04/01/2021","6.66","Director of Housing, Neighbourhood and Building Services"
"Utility","Phone Serv/Equip Utility","Vodafone Ltd","Supplies and Services related expenditure","04/01/2021","140.71","Director of Children's Services and Education"
"Other Supplies","Misc Speciality Retail","Amznmktplace","Supplies and Services related expenditure","04/01/2021","45.83","Director of Children's Services and Education"
"Government Service","Govt Serv - Default","Pcc Internet Payment","Transport related expenditure","04/01/2021","90","Director of Children's Services and Education"
"Business To Business Eqpt/Furn","Computer Software Stores","Text Anywhere","Supplies and Services related expenditure","04/01/2021","254.5","Director of Children's Services and Education"
"Miscellaneous","Charitable/Soc Service Orgs","Www.Housing21.Co.U","Premises related expenditure","04/01/2021","97.77","Director of Adult Services"
"Medical","Lab/Med/Hospital Equipment","Wightman & Parrish Ltd","Supplies and Services related expenditure","04/01/2021","37.98","Director of Adult Services"
"Medical","Lab/Med/Hospital Equipment","Wightman & Parrish Ltd","Supplies and Services related expenditure","04/01/2021","26.86","Director of Adult Services"
"Medical","Lab/Med/Hospital Equipment","Wightman & Parrish Ltd","Supplies and Services related expenditure","04/01/2021","110.99","Director of Adult Services"
"Medical","Lab/Med/Hospital Equipment","Wightman & Parrish Ltd","Premises related expenditure","04/01/2021","92.46","Director of Adult Services"
"Other Supplies","Misc Speciality Retail","Amznmktplace","Supplies and Services related expenditure","04/01/2021","220.66","Director of Children's Services and Education"
"Government Service","Govt Serv - Default","Pcc Internet Payment","Agency and Third Party Payments related expenditure","04/01/2021","11","Director of Culture, Leisure & Regulatory Services"
"Other Supplies","Misc Speciality Retail","Amznmktplace Amazon.Co.Uk","Supplies and Services related expenditure","04/01/2021","49.98","Director of Children's Services and Education"
"Other Supplies","Misc Speciality Retail","Amznbusiness","Supplies and Services related expenditure","04/01/2021","37.49","Director of Portsmouth International Port"
"Miscellaneous","Continuity/Subscription Mercht","Mailchimp","Supplies and Services related expenditure","04/01/2021","56","Director of Culture, Leisure & Regulatory Services"
"Other Supplies","Misc Speciality Retail","Amznmktplace","Supplies and Services related expenditure","04/01/2021","71","Director of Adult Services"
"Type of Retail Store","Grocery Stores/Supermarkets","Wm Morrisons Store","Supplies and Services related expenditure","04/01/2021","43.05","Director of Children's Services and Education"
"Type of Retail Store","Grocery Stores/Supermarkets","Lidl Gb Portsmouth","Supplies and Services related expenditure","04/01/2021","5.64","Director of Children's Services and Education"
"Type of Retail Store","Grocery Stores/Supermarkets","Lidl Gb Portsmouth","Supplies and Services related expenditure","04/01/2021","62.93","Director of Children's Services and Education"
"Type of Retail Store","Grocery Stores/Supermarkets","Farmfoods 750","Supplies and Services related expenditure","04/01/2021","10.82","Director of Children's Services and Education"
"Type of Retail Store","Grocery Stores/Supermarkets","Farmfoods 750","Supplies and Services related expenditure","04/01/2021","88.49","Director of Children's Services and Education"
"Type of Retail Store","Electronics Sales","Currys Online","Supplies and Services related expenditure","04/01/2021","83.33","Director of Adult Services"
"Business Expenses/Services","Stationery Stores","Www.Shredderrepair","Supplies and Services related expenditure","04/01/2021","27.39","Director of Children's Services and Education"
"Transportation Conveyor","Parking Lots, Meters, Garages","Centrale Car Park, Cro","Supplies and Services related expenditure","04/01/2021","5","Director of Children's Services and Education"
"Personal Service Provider","Computer Program/Sys Design","Udemy","Employees related expenditure","04/01/2021","-12.99","Director of Corporate Services"
"Government Service","Schools - Default","Emma Jones","Supplies and Services related expenditure","04/01/2021","71","Director of Children's Services and Education"
"Personal Service Provider","Professional Services - Def","Paypal","Supplies and Services related expenditure","04/01/2021","25","Director of Culture, Leisure & Regulatory Services"
"Equipment And Furniture","Phone Serv/Equip Non-Util","Birmingham Telecommunicat","Supplies and Services related expenditure","04/01/2021","96.93","Director of Culture, Leisure & Regulatory Services"
"Other Supplies","Misc Speciality Retail","Amznmktplace","Supplies and Services related expenditure","04/01/2021","29.12","Director of Children's Services and Education"
"Miscellaneous","Other Direct Marketers","Amazon.Co.Uk","Supplies and Services related expenditure","04/01/2021","34.62","Director of Children's Services and Education"
"Other Supplies","Misc Speciality Retail","Amznmktplace","Supplies and Services related expenditure","04/01/2021","84.13","Director of Children's Services and Education"
"Medical","Lab/Med/Hospital Equipment","Wightman & Parrish","Premises related expenditure","04/01/2021","381.56","Director of Housing, Neighbourhood and Building Services"
"Other Supplies","Misc Speciality Retail","Amznbusiness","Capital related expenditure","04/01/2021","70","Capital - Housing RA"
"Type of Retail Store","Grocery Stores/Supermarkets","Tesco Store 3055","Supplies and Services related expenditure","04/01/2021","7.92","Director of Children's Services and Education"
"Type of Retail Store","Grocery Stores/Supermarkets","Tesco Store 3055","Supplies and Services related expenditure","04/01/2021","29.32","Director of Children's Services and Education"
"Digital Goods","Digital Goods - Games","Microsoft*xbox","Agency and Third Party Payments related expenditure","04/01/2021","7.99","Director of Children's Services and Education"
"Equipment And Furniture","Equip/Furn Rent/Lease Serv","Machine Mart Web","Supplies and Services related expenditure","04/01/2021","15.99","Director of Culture, Leisure & Regulatory Services"
"Medical","Lab/Med/Hospital Equipment","Wightman & Parrish","Supplies and Services related expenditure","04/01/2021","49.54","Director of Adult Services"
"Other Supplies","Misc Speciality Retail","Amznmktplace","Supplies and Services related expenditure","04/01/2021","18.21","Director of Regeneration"
"Other Supplies","Discount Stores","Poundland Ltd","Supplies and Services related expenditure","04/01/2021","10","Director of Children's Services and Education"
"Digital Goods","Digital Goods - Games","Playstationnetwork","Agency and Third Party Payments related expenditure","04/01/2021","3.99","Director of Children's Services and Education"
"Business To Business Eqpt/Furn","Stationery/Office Supplies","Www.Banneruk.Com","Supplies and Services related expenditure","04/01/2021","-13.76","Director of Adult Services"
"Utility","Phone Serv/Equip Utility","O2","Supplies and Services related expenditure","04/01/2021","24","Director of Children's Services and Education"
"Business To Business Eqpt/Furn","Computer Software Stores","Sp * Books4people","Supplies and Services related expenditure","04/01/2021","35.97","Director of Children's Services and Education"
"Business Services","Business Services - Default","Zebra Waste","Premises related expenditure","04/01/2021","240","Director of Adult Services"
"Government Service","Tax Payments","Dvla Vehicle Tax","Transport related expenditure","04/01/2021","222.92","Director of Housing, Neighbourhood and Building Services"
"Government Service","Tax Payments","Dvla Vehicle Tax","Transport related expenditure","04/01/2021","222.92","Director of Housing, Neighbourhood and Building Services"
"Type of Retail Store","Grocery Stores/Supermarkets","Asda Groceries Online","Supplies and Services related expenditure","04/01/2021","-0.3","Director of Children's Services and Education"
"Type of Retail Store","Grocery Stores/Supermarkets","Asda Groceries Online","Supplies and Services related expenditure","04/01/2021","67.36","Director of Children's Services and Education"
"Type of Retail Store","Grocery Stores/Supermarkets","Tesco Stores 4579","Premises related expenditure","04/01/2021","36.87","Director of Children's Services and Education"
"Business To Business Facility/","Industrial Supplies - Def","Arco Limited (Sap)","Supplies and Services related expenditure","04/01/2021","83.28","Director of Housing, Neighbourhood and Building Services"
"Other Supplies","Misc Speciality Retail","Amznmktplace","Supplies and Services related expenditure","04/01/2021","25.83","Director of Regeneration"
"Other Supplies","Wholesale Clubs","Www.Spandex.Com","Supplies and Services related expenditure","04/01/2021","1197.99","Director of Regeneration"
"Type of Retail Store","Sporting Goods Stores","Bishopsport","Supplies and Services related expenditure","04/01/2021","57.13","Director of Children's Services and Education"
"Government Service","Govt Serv - Default","Hampshire County Counc","Premises related expenditure","04/01/2021","207.74","Director of Children's Services and Education"
"Miscellaneous","Member Organizations - Def","Www.Cips.Org","Employees related expenditure","04/01/2021","137","Director of Finance & Resources"
"Miscellaneous","Member Organizations - Def","Www.Cips.Org","Supplies and Services related expenditure","04/01/2021","153.5","Director of Finance & Resources"
"Other Supplies","Catalog Merchant","Www.Uk.Insight.Com","Supplies and Services related expenditure","04/01/2021","127.01","Director of Housing, Neighbourhood and Building Services"
"Business To Business Facility/","Industrial Supplies - Def","Arco Limited (Sap)","Supplies and Services related expenditure","01/01/2021","54.1","Director of Housing, Neighbourhood and Building Services"
"Hotels And Motels","Premier Travel Inns","Premier Inn44010625","Agency and Third Party Payments related expenditure","04/01/2021","440.95","Director of Housing, Neighbourhood and Building Services"
"Personal Service Provider","Computer Program/Sys Design","Nochex.*tide Times","Supplies and Services related expenditure","04/01/2021","9","Director of Culture, Leisure & Regulatory Services"
"Other Supplies","Misc Speciality Retail","Amazon.Co.Uk","Supplies and Services related expenditure","04/01/2021","15.82","Director of Children's Services and Education"
"Business To Business Facility/","Industrial Supplies - Def","Arco Limited (Ahpp)","Supplies and Services related expenditure","04/01/2021","374.6","Director of Housing, Neighbourhood and Building Services"
"Other Supplies","Misc Speciality Retail","Amznmktplace Amazon.Co.Uk","Premises related expenditure","04/01/2021","216.79","Director of Children's Services and Education"
"Miscellaneous","Charitable/Soc Service Orgs","Paypal","Supplies and Services related expenditure","04/01/2021","49.9","Director of Culture, Leisure & Regulatory Services"
"Business To Business Facility/","Hardware Equipment/Supplies","Zoro Uk","Supplies and Services related expenditure","04/01/2021","13.23","Director of Portsmouth International Port"
"Equipment And Furniture","Household Appliance Stores","Tlc Southern","Supplies and Services related expenditure","05/01/2021","33.33","Director of Housing, Neighbourhood and Building Services"
"Equipment And Furniture","Household Appliance Stores","Tlc Southern","Supplies and Services related expenditure","05/01/2021","33.33","Director of Housing, Neighbourhood and Building Services"
"Other Supplies","Misc Speciality Retail","Amznmktplace","Supplies and Services related expenditure","05/01/2021","12.9","Director of Housing, Neighbourhood and Building Services"
"Other Supplies","Misc Gen Merchandise - Def","Wilko.Com","Supplies and Services related expenditure","05/01/2021","14.17","Director of Housing, Neighbourhood and Building Services"
"Other Supplies","Misc Gen Merchandise - Def","Wilko.Com","Supplies and Services related expenditure","05/01/2021","17.5","Director of Housing, Neighbourhood and Building Services"
"Business Expenses/Services","Stationery Stores","Www.Officesupplies.Org","Supplies and Services related expenditure","05/01/2021","126.39","Director of Housing, Neighbourhood and Building Services"
"Business To Business Facility/","Industrial Supplies - Def","Arco Limited (Sap)","Supplies and Services related expenditure","05/01/2021","137.42","Director of Housing, Neighbourhood and Building Services"
"Other Supplies","Misc Speciality Retail","Amznmktplace","Supplies and Services related expenditure","05/01/2021","52.45","Director of Portsmouth International Port"
"Other Supplies","Misc Speciality Retail","Amznmktplace","Supplies and Services related expenditure","05/01/2021","34.6","Director of Adult Services"
"Facilities/Repair Supplies","Lawn/Garden Supply/Nursery","Www.Tudorenvironmental","Supplies and Services related expenditure","05/01/2021","71.4","Director of Culture, Leisure & Regulatory Services"
"Facilities/Repair Supplies","Lawn/Garden Supply/Nursery","Hedges Direct Limited","Supplies and Services related expenditure","05/01/2021","775.06","Director of Culture, Leisure & Regulatory Services"
"Other Supplies","Misc Speciality Retail","Amznmktplace Amazon.Co.Uk","Supplies and Services related expenditure","05/01/2021","-20.83","Director of Corporate Services"
"Business To Business Facility/","Industrial Supplies - Def","Ourweighltd","Supplies and Services related expenditure","05/01/2021","60.35","Director of Culture, Leisure & Regulatory Services"
"Other Supplies","Department Stores","Southern Co-Op 0018","Premises related expenditure","05/01/2021","40.83","Director of Children's Services and Education"
"Other Supplies","Department Stores","Southern Co-Op 0018","Premises related expenditure","05/01/2021","40.83","Director of Children's Services and Education"
"Type of Retail Store","Music Stores/Pianos","Joytunes","Supplies and Services related expenditure","05/01/2021","14.99","Director of Children's Services and Education"
"Other Supplies","Misc Speciality Retail","Amznmktplace Amazon.Co.Uk","Supplies and Services related expenditure","05/01/2021","16.66","Director of Children's Services and Education"
"Health Services And Supplies","Hearing Aid/Sales/Service","Nrs Healthcare","Supplies and Services related expenditure","05/01/2021","8.49","Director of Adult Services"
"Type of Retail Store","Grocery Stores/Supermarkets","Asda Stores","Supplies and Services related expenditure","05/01/2021","12.5","Director of Adult Services"
"Type of Retail Store","Grocery Stores/Supermarkets","Asda Stores","Supplies and Services related expenditure","05/01/2021","25.83","Director of Adult Services"
"Type of Retail Store","Grocery Stores/Supermarkets","Asda Stores","Premises related expenditure","05/01/2021","17.33","Director of Adult Services"
"Other Supplies","Misc Speciality Retail","Amznmktplace","Supplies and Services related expenditure","05/01/2021","9.53","Director of Housing, Neighbourhood and Building Services"
"Other Supplies","Misc Speciality Retail","Amznmktplace","Supplies and Services related expenditure","05/01/2021","9.53","Director of Housing, Neighbourhood and Building Services"
"Business To Business Eqpt/Furn","Stationery/Office Supplies","Www.Banneruk.Com","Supplies and Services related expenditure","05/01/2021","62.21","Director of Housing, Neighbourhood and Building Services"
"Type of Retail Store","Grocery Stores/Supermarkets","Tesco Stores 4611","Supplies and Services related expenditure","05/01/2021","30","Director of Children's Services and Education"
"Other Supplies","Misc Speciality Retail","Amznmktplace","Supplies and Services related expenditure","05/01/2021","19.57","Director of Adult Services"
"Business To Business Eqpt/Furn","Computer Software Stores","Gdpr In Schools Ltd","Supplies and Services related expenditure","05/01/2021","395","Director of Children's Services and Education"
"Government Service","Govt Serv - Default","Gen Register Office","Supplies and Services related expenditure","05/01/2021","25","Director of Children's Services and Education"
"Other Supplies","Misc Speciality Retail","Amznmktplace","Supplies and Services related expenditure","05/01/2021","16.88","Director of Adult Services"
"Other Supplies","Misc Speciality Retail","Amznmktplace","Supplies and Services related expenditure","05/01/2021","4.16","Director of Adult Services"
"Business To Business Eqpt/Furn","Stationery/Office Supplies","Www.Banneruk.Com","Supplies and Services related expenditure","05/01/2021","13.5","Director of Regeneration"
"Business To Business Eqpt/Furn","Stationery/Office Supplies","Www.Banneruk.Com","Supplies and Services related expenditure","05/01/2021","42.52","Director of Regeneration"
"Business To Business Eqpt/Furn","Stationery/Office Supplies","Www.Banneruk.Com","Supplies and Services related expenditure","05/01/2021","110.5","Director of Regeneration"
"Facilities/Repair Supplies","Home Supply Warehouse Stores","B & Q 1260","Supplies and Services related expenditure","05/01/2021","7.5","Director of Housing, Neighbourhood and Building Services"
"Business To Business Facility/","Hardware Equipment/Supplies","Croma Locksmiths & Sec","Supplies and Services related expenditure","05/01/2021","17.17","Director of Housing, Neighbourhood and Building Services"
"Type of Retail Store","Grocery Stores/Supermarkets","Tesco Stores 4611","Supplies and Services related expenditure","05/01/2021","10","Director of Children's Services and Education"
"Other Supplies","Misc Speciality Retail","Amznmktplace Amazon.Co.Uk","Supplies and Services related expenditure","05/01/2021","11.65","Director of Children's Services and Education"
"Type of Retail Store","Grocery Stores/Supermarkets","Www.Iceland.Co.Uk","Supplies and Services related expenditure","05/01/2021","59.94","Director of Adult Services"
"Business To Business Eqpt/Furn","Stationery/Office Supplies","Www.Banneruk.Com","Supplies and Services related expenditure","05/01/2021","30.9","Director of Adult Services"
"Type of Retail Store","Grocery Stores/Supermarkets","Tesco Store 3055","Supplies and Services related expenditure","05/01/2021","1.5","Director of Children's Services and Education"
"Type of Retail Store","Grocery Stores/Supermarkets","Tesco Store 3055","Supplies and Services related expenditure","05/01/2021","12.72","Director of Children's Services and Education"
"Other Supplies","Misc Speciality Retail","Amznmktplace Amazon.Co.Uk","Premises related expenditure","05/01/2021","18.36","Director of Children's Services and Education"
"Type of Retail Store","Grocery Stores/Supermarkets","Wm Morrisons Store","Supplies and Services related expenditure","05/01/2021","10.83","Director of Children's Services and Education"
"Transportation Conveyor","Passenger Railways","Thetrainline.Com","Transport related expenditure","05/01/2021","88.07","Director of Children's Services and Education"
"Business To Business Eqpt/Furn","Stationery/Office Supplies","Www.Banneruk.Com","Supplies and Services related expenditure","05/01/2021","144.25","Director of Adult Services"
"Type of Retail Store","Grocery Stores/Supermarkets","Fruit Basket Ltd","Supplies and Services related expenditure","05/01/2021","2244.98","Director of Adult Services"
"Type of Retail Store","Grocery Stores/Supermarkets","Asda Stores","Premises related expenditure","05/01/2021","6.25","Director of Children's Services and Education"
"Type of Retail Store","Grocery Stores/Supermarkets","Asda Stores","Supplies and Services related expenditure","05/01/2021","8.67","Director of Children's Services and Education"
"Type of Retail Store","Grocery Stores/Supermarkets","Wm Morrisons Store","Supplies and Services related expenditure","05/01/2021","7.5","Director of Children's Services and Education"
"Type of Retail Store","Grocery Stores/Supermarkets","Wm Morrisons Store","Supplies and Services related expenditure","05/01/2021","5.83","Director of Children's Services and Education"
"Type of Retail Store","Grocery Stores/Supermarkets","Wm Morrisons Store","Premises related expenditure","05/01/2021","5.42","Director of Children's Services and Education"
"Type of Retail Store","Grocery Stores/Supermarkets","Wm Morrisons Store","Supplies and Services related expenditure","05/01/2021","19.93","Director of Children's Services and Education"
"Type of Retail Store","Grocery Stores/Supermarkets","Fruit Basket Ltd","Supplies and Services related expenditure","05/01/2021","24.12","Director of Culture, Leisure & Regulatory Services"
"Facilities/Repair Supplies","Lumber/Build. Supply Stores","Screwfix Direct","Supplies and Services related expenditure","05/01/2021","15.83","Director of Housing, Neighbourhood and Building Services"
"Type of Retail Store","Grocery Stores/Supermarkets","Asda Stores","Supplies and Services related expenditure","05/01/2021","28.34","Director of Adult Services"
"Business To Business Eqpt/Furn","Stationery/Office Supplies","Www.Banneruk.Com","Supplies and Services related expenditure","05/01/2021","39.72","Director of Housing, Neighbourhood and Building Services"
"Business To Business Eqpt/Furn","Stationery/Office Supplies","Www.Banneruk.Com","Supplies and Services related expenditure","05/01/2021","66.64","Director of Housing, Neighbourhood and Building Services"
"Type of Retail Store","Sporting Goods Stores","Jd Sports Internet","Supplies and Services related expenditure","05/01/2021","43.99","Director of Children's Services and Education"
"Type of Retail Store","Electronics Sales","Comms Express Ltd","Supplies and Services related expenditure","05/01/2021","277.5","Director of Corporate Services"
"Facilities/Repair Supplies","Home Supply Warehouse Stores","B & Q 1260","Supplies and Services related expenditure","05/01/2021","59.21","Director of Housing, Neighbourhood and Building Services"
"Other Supplies","Misc Gen Merchandise - Def","B&m 566 - Farlington","Premises related expenditure","05/01/2021","4.97","Director of Adult Services"
"Type of Retail Store","Grocery Stores/Supermarkets","Asda Groceries Online","Supplies and Services related expenditure","05/01/2021","-1.19","Director of Children's Services and Education"
"Type of Retail Store","Grocery Stores/Supermarkets","Asda Groceries Online","Supplies and Services related expenditure","05/01/2021","5.01","Director of Children's Services and Education"
"Business To Business Services","Misc Publishing & Printing","Www.Informa.Com","Supplies and Services related expenditure","05/01/2021","45.59","Director of Children's Services and Education"
"Type of Retail Store","Grocery Stores/Supermarkets","Asda Groceries Online","Supplies and Services related expenditure","05/01/2021","160.95","Director of Children's Services and Education"
"Type of Retail Store","Grocery Stores/Supermarkets","Tesco Store 3055","Supplies and Services related expenditure","05/01/2021","112.39","Director of Children's Services and Education"
"Utility","Computer Network/Info Svcs","Www.Zen.Co.Uk","Supplies and Services related expenditure","05/01/2021","17.83","Director of Portsmouth International Port"
"Business To Business Eqpt/Furn","Stationery/Office Supplies","Www.Banneruk.Com","Supplies and Services related expenditure","05/01/2021","34.86","Director of Adult Services"
"Government Service","Colleges/Univ/Jc/Profession","Www.Hope.Ac.Uk","Supplies and Services related expenditure","05/01/2021","75","Director of Children's Services and Education"
"Type of Retail Store","Grocery Stores/Supermarkets","Tesco Store 3055","Supplies and Services related expenditure","05/01/2021","39.87","Director of Housing, Neighbourhood and Building Services"
"Business To Business Eqpt/Furn","Stationery/Office Supplies","Www.Banneruk.Com","Supplies and Services related expenditure","05/01/2021","4.16","Director of Children's Services and Education"
"Government Service","Business/Secretarial School","Highspeedtraining.Co.U","Supplies and Services related expenditure","05/01/2021","75","Director of Housing, Neighbourhood and Building Services"
"Type of Retail Store","Grocery Stores/Supermarkets","Tesco Store 3055","Supplies and Services related expenditure","05/01/2021","7.5","Director of Children's Services and Education"
"Type of Retail Store","Grocery Stores/Supermarkets","Tesco Stores 4579","Premises related expenditure","05/01/2021","1.67","Director of Children's Services and Education"
"Type of Retail Store","Grocery Stores/Supermarkets","Tesco Stores 4579","Supplies and Services related expenditure","05/01/2021","2","Director of Children's Services and Education"
"Type of Retail Store","Grocery Stores/Supermarkets","Tesco Stores 4579","Supplies and Services related expenditure","05/01/2021","10","Director of Children's Services and Education"
"Type of Retail Store","Grocery Stores/Supermarkets","Tesco Stores 4579","Supplies and Services related expenditure","05/01/2021","1.67","Director of Children's Services and Education"
"Type of Retail Store","Grocery Stores/Supermarkets","Tesco Stores 4579","Supplies and Services related expenditure","05/01/2021","15.35","Director of Children's Services and Education"
"Business To Business Eqpt/Furn","Stationery/Office Supplies","Www.Banneruk.Com","Supplies and Services related expenditure","05/01/2021","10.98","Director of Housing, Neighbourhood and Building Services"
"Business To Business Eqpt/Furn","Stationery/Office Supplies","Www.Banneruk.Com","Supplies and Services related expenditure","05/01/2021","121.21","Director of Housing, Neighbourhood and Building Services"
"Auto/Vehicle Expenses","Auto Service Shops/Non Dealer","Staple Garage","Transport related expenditure","05/01/2021","626.45","Director of Housing, Neighbourhood and Building Services"
"Auto/Vehicle Expenses","Auto Service Shops/Non Dealer","Staple Garage","Transport related expenditure","05/01/2021","54","Director of Housing, Neighbourhood and Building Services"
"Automobile Services & Supplies","Automobile Dealers And Leasing","Cosham Service","Transport related expenditure","05/01/2021","17.04","Director of Housing, Neighbourhood and Building Services"
"Other Supplies","Misc Speciality Retail","Amznbusiness","Supplies and Services related expenditure","05/01/2021","20.41","Director of Children's Services and Education"
"Business To Business Facility/","Industrial Supplies - Def","Arco Limited (Sap)","Supplies and Services related expenditure","05/01/2021","41.63","Director of Housing, Neighbourhood and Building Services"
"Business To Business Facility/","Industrial Supplies - Def","Arco Limited (Sap)","Supplies and Services related expenditure","05/01/2021","64.28","Director of Housing, Neighbourhood and Building Services"
"Other Supplies","Misc Speciality Retail","Amznmktplace","Supplies and Services related expenditure","05/01/2021","22.07","Director of Regeneration"
"Business To Business Eqpt/Furn","Stationery/Office Supplies","Www.Banneruk.Com","Supplies and Services related expenditure","05/01/2021","27.52","Director of Housing, Neighbourhood and Building Services"
"Business To Business Eqpt/Furn","Stationery/Office Supplies","Www.Banneruk.Com","Supplies and Services related expenditure","05/01/2021","66.64","Director of Housing, Neighbourhood and Building Services"
"Eating And Drinking Places","Fast Food Restaurants","Starbucks Coffee","Agency and Third Party Payments related expenditure","05/01/2021","3.29","Director of Children's Services and Education"
"Eating And Drinking Places","Fast Food Restaurants","Starbucks Coffee","Agency and Third Party Payments related expenditure","05/01/2021","3.5","Director of Children's Services and Education"
"Business To Business Eqpt/Furn","Stationery/Office Supplies","Www.Banneruk.Com","Supplies and Services related expenditure","05/01/2021","6.96","Director of Children's Services and Education"
"Business To Business Eqpt/Furn","Stationery/Office Supplies","Www.Banneruk.Com","Supplies and Services related expenditure","05/01/2021","26.07","Director of Adult Services"
"Miscellaneous","Misc Personal Serv - Def","Securitymetrics, Inc.","Supplies and Services related expenditure","05/01/2021","210","Director of Corporate Services"
"Medical","Lab/Med/Hospital Equipment","Wightman & Parrish","Premises related expenditure","05/01/2021","68.19","Director of Housing, Neighbourhood and Building Services"
"Eating And Drinking Places","Fast Food Restaurants","McDonalds","Agency and Third Party Payments related expenditure","05/01/2021","3.41","Director of Children's Services and Education"
"Eating And Drinking Places","Fast Food Restaurants","McDonalds","Agency and Third Party Payments related expenditure","05/01/2021","1.13","Director of Children's Services and Education"
"Eating And Drinking Places","Fast Food Restaurants","McDonalds","Agency and Third Party Payments related expenditure","05/01/2021","3.98","Director of Children's Services and Education"
"Eating And Drinking Places","Fast Food Restaurants","McDonalds","Agency and Third Party Payments related expenditure","05/01/2021","1.29","Director of Children's Services and Education"
"Facilities/Repair Supplies","Automotive Parts Stores","Total Motor Factors Lt","Transport related expenditure","05/01/2021","5","Director of Housing, Neighbourhood and Building Services"
"Business To Business Eqpt/Furn","Computers/Peripherals/Software","Pdqcom","Supplies and Services related expenditure","06/01/2021","683.71","Director of Children's Services and Education"
"Other Supplies","Misc Speciality Retail","Amznbusiness","Supplies and Services related expenditure","05/01/2021","9.9","Director of Portsmouth International Port"
"Auto/Vehicle Expenses","Automated Fuel Dispensers","Tesco Pay At Pump 4274","Transport related expenditure","05/01/2021","58.99","Director of Regeneration"
"Hotels And Motels","Premier Travel Inns","Premier Inn44010625","Agency and Third Party Payments related expenditure","05/01/2021","246.67","Director of Housing, Neighbourhood and Building Services"
"Business To Business Facility/","Industrial Supplies - Def","Arco Limited (Ahpp)","Supplies and Services related expenditure","05/01/2021","50.4","Director of Housing, Neighbourhood and Building Services"
"Business To Business Facility/","Electrical Parts/Equipment","Rs Components","Premises related expenditure","05/01/2021","123","Director of Portsmouth International Port"
"Other Supplies","Misc Speciality Retail","Amznbusiness","Supplies and Services related expenditure","05/01/2021","23.27","Director of Culture, Leisure & Regulatory Services"
"Business To Business Facility/","Industrial Supplies - Def","Arco Limited (Ahpp)","Supplies and Services related expenditure","05/01/2021","51.39","Director of Housing, Neighbourhood and Building Services"
"Business To Business Eqpt/Furn","Stationery/Office Supplies","Www.Banneruk.Com","Supplies and Services related expenditure","05/01/2021","39.05","Director of Adult Services"
"Government Service","Govt Serv - Default","Www.Moneyclaim.Gov","Supplies and Services related expenditure","06/01/2021","105","Director of Housing, Neighbourhood and Building Services"
"Medical","Lab/Med/Hospital Equipment","Wightman & Parrish","Premises related expenditure","06/01/2021","40.62","Director of Housing, Neighbourhood and Building Services"
"Freight/Courier/Warehouse Svcs","Public Warehousing","Big Yellow - Portsmout","Premises related expenditure","06/01/2021","18","Director of Housing, Neighbourhood and Building Services"
"Freight/Courier/Warehouse Svcs","Public Warehousing","Big Yellow - Portsmout","Premises related expenditure","06/01/2021","90","Director of Housing, Neighbourhood and Building Services"
"Freight/Courier/Warehouse Svcs","Public Warehousing","Big Yellow - Portsmout","Premises related expenditure","06/01/2021","28","Director of Housing, Neighbourhood and Building Services"
"Freight/Courier/Warehouse Svcs","Public Warehousing","Big Yellow - Portsmout","Premises related expenditure","06/01/2021","138","Director of Housing, Neighbourhood and Building Services"
"Business To Business Eqpt/Furn","Book Stores","Www.Ribabookshops.Com","Capital related expenditure","06/01/2021","63.5","Capital - Housing RA"
"Other Supplies","Misc Speciality Retail","Amznmktplace Amazon.Co.Uk","Supplies and Services related expenditure","06/01/2021","14.17","Director of Housing, Neighbourhood and Building Services"
"Automobile Services & Supplies","Service Stations","Mfg North End","Transport related expenditure","06/01/2021","33.33","Director of Housing, Neighbourhood and Building Services"
"Utility","Phone Serv/Equip Utility","Zoom.Us 888-799-9666","Agency and Third Party Payments related expenditure","06/01/2021","11.99","Director of Culture, Leisure & Regulatory Services"
"Other Supplies","Misc Speciality Retail","Amznmktplace","Supplies and Services related expenditure","06/01/2021","16.58","Director of Portsmouth International Port"
"Other Supplies","Misc Speciality Retail","Amznmktplace","Supplies and Services related expenditure","06/01/2021","16.58","Director of Portsmouth International Port"
"Utility","Phone Serv/Equip Utility","Zoom.Us 888-799-9666","Supplies and Services related expenditure","06/01/2021","11.99","Director of Children's Services and Education"
"Government Service","Govt Serv - Default","Hampshire County Counc","Supplies and Services related expenditure","06/01/2021","1.03","Director of Children's Services and Education"
"Government Service","Govt Serv - Default","Hampshire County Counc","Supplies and Services related expenditure","06/01/2021","3","Director of Children's Services and Education"
"Government Service","Govt Serv - Default","Hampshire County Counc","Supplies and Services related expenditure","06/01/2021","3.6","Director of Children's Services and Education"
"Government Service","Govt Serv - Default","Hampshire County Counc","Supplies and Services related expenditure","06/01/2021","10.26","Director of Children's Services and Education"
"Government Service","Govt Serv - Default","Hampshire County Counc","Supplies and Services related expenditure","06/01/2021","15.95","Director of Children's Services and Education"
"Business To Business Eqpt/Furn","Stationery/Office Supplies","Www.Banneruk.Com","Supplies and Services related expenditure","06/01/2021","14.37","Director of Finance & Resources"
"Business Expenses/Services","Books/Periodicals/Newspapers","The Design Trust","Supplies and Services related expenditure","06/01/2021","125","Director of Culture, Leisure & Regulatory Services"
"Other Supplies","Misc Speciality Retail","Amznmktplace","Supplies and Services related expenditure","06/01/2021","19.16","Director of Children's Services and Education"
"Type of Retail Store","Electronics Sales","Mymemory Ltd","Supplies and Services related expenditure","06/01/2021","26.66","Director of Children's Services and Education"
"Type of Retail Store","Grocery Stores/Supermarkets","Tesco Store 3055","Supplies and Services related expenditure","06/01/2021","19.75","Director of Adult Services"
"Utility","Phone Serv/Equip Utility","Three-Billpay(Web)","Supplies and Services related expenditure","06/01/2021","33","Director of Adult Services"
"Medical","Lab/Med/Hospital Equipment","Wightman & Parrish","Premises related expenditure","06/01/2021","26.96","Director of Housing, Neighbourhood and Building Services"
"Medical","Lab/Med/Hospital Equipment","Wightman & Parrish","Premises related expenditure","06/01/2021","41.67","Director of Housing, Neighbourhood and Building Services"
"Facilities/Repair Supplies","Lawn/Garden Supply/Nursery","Paypal","Premises related expenditure","06/01/2021","602.49","Director of Housing, Neighbourhood and Building Services"
"Digital Goods","Digital Goods - Large Digital Goods Merchant","Playstationnetwork","Agency and Third Party Payments related expenditure","06/01/2021","6.99","Director of Children's Services and Education"
"Eating And Drinking Places","Fast Food Restaurants","Starbucks Coffee","Agency and Third Party Payments related expenditure","06/01/2021","8.3","Director of Children's Services and Education"
"Eating And Drinking Places","Fast Food Restaurants","Starbucks Coffee","Agency and Third Party Payments related expenditure","06/01/2021","6.17","Director of Children's Services and Education"
"Eating And Drinking Places","Fast Food Restaurants","Starbucks Coffee","Agency and Third Party Payments related expenditure","06/01/2021","4.2","Director of Children's Services and Education"
"Type of Retail Store","Grocery Stores/Supermarkets","Asda Stores","Supplies and Services related expenditure","06/01/2021","16.67","Director of Children's Services and Education"
"Type of Retail Store","Pet Stores/Food & Supply","Pets At Home Ltd","Agency and Third Party Payments related expenditure","06/01/2021","20.16","Director of Children's Services and Education"
"Type of Retail Store","Grocery Stores/Supermarkets","Tesco Stores 4611","Supplies and Services related expenditure","06/01/2021","20","Director of Children's Services and Education"
"Transportation Conveyor","Local Commuter Transport","Www.Wightlink.Co.Uk","Transport related expenditure","06/01/2021","66.5","Director of Children's Services and Education"
"Hotels And Motels","Hotel Ibis","Hotel Ibis","Supplies and Services related expenditure","06/01/2021","30","Director of Children's Services and Education"
"Hotels And Motels","Hotel Ibis","Hotel Ibis","Supplies and Services related expenditure","06/01/2021","195","Director of Children's Services and Education"
"Hotels And Motels","Hotel Ibis","Hotel Ibis","Supplies and Services related expenditure","06/01/2021","195","Director of Children's Services and Education"
"Utility","Phone Serv/Equip Utility","Pageone","Supplies and Services related expenditure","06/01/2021","31.14","Director of Culture, Leisure & Regulatory Services"
"Other Supplies","Misc Speciality Retail","Amznmktplace","Supplies and Services related expenditure","06/01/2021","22.77","Director of Children's Services and Education"
"Other Supplies","Misc Speciality Retail","Amznmktplace","Supplies and Services related expenditure","06/01/2021","20.05","Director of Children's Services and Education"
"Business To Business Facility/","Industrial Supplies - Def","The Plastic Box Company","Supplies and Services related expenditure","06/01/2021","41.05","Director of Children's Services and Education"
"Equipment And Furniture","Furniture/Equip Stores","Bed Care Ltd","Supplies and Services related expenditure","06/01/2021","265.83","Director of Children's Services and Education"
"Business Expenses/Services","Books/Periodicals/Newspapers","Www.Wheelersbooks.Co.N","Supplies and Services related expenditure","06/01/2021","214.82","Director of Culture, Leisure & Regulatory Services"
"Business Expenses/Services","Books/Periodicals/Newspapers","Www.Wheelersbooks.Co.N","Supplies and Services related expenditure","06/01/2021","458.79","Director of Culture, Leisure & Regulatory Services"
"Type of Retail Store","Grocery Stores/Supermarkets","Tesco Stores 4579","Supplies and Services related expenditure","06/01/2021","5","Director of Culture, Leisure & Regulatory Services"
"Equipment And Furniture","Household Appliance Stores","Ao Retail Limited","Supplies and Services related expenditure","06/01/2021","178.33","Director of Children's Services and Education"
"Facilities/Repair Supplies","Home Supply Warehouse Stores","B & Q 1238","Supplies and Services related expenditure","06/01/2021","6.67","Director of Housing, Neighbourhood and Building Services"
"Facilities/Repair Supplies","Home Supply Warehouse Stores","B & Q 1238","Supplies and Services related expenditure","06/01/2021","10.93","Director of Housing, Neighbourhood and Building Services"
"Facilities/Repair Supplies","Home Supply Warehouse Stores","B & Q 1238","Supplies and Services related expenditure","06/01/2021","12.25","Director of Housing, Neighbourhood and Building Services"
"Other Supplies","Misc Speciality Retail","Amznmktplace","Supplies and Services related expenditure","06/01/2021","14.17","Director of Children's Services and Education"
"Other Supplies","Misc Speciality Retail","Amznmktplace","Supplies and Services related expenditure","06/01/2021","83.98","Director of Children's Services and Education"
"Business To Business Facility/","Electrical Parts/Equipment","Edmundson Electrical","Premises related expenditure","06/01/2021","21.2","Director of Portsmouth International Port"
"Business To Business Facility/","Electrical Parts/Equipment","Edmundson Electrical","Premises related expenditure","06/01/2021","52.04","Director of Portsmouth International Port"
"Business To Business Facility/","Electrical Parts/Equipment","Edmundson Electrical","Premises related expenditure","06/01/2021","210.41","Director of Portsmouth International Port"
"Other Supplies","Misc Speciality Retail","Amznmktplace","Supplies and Services related expenditure","06/01/2021","21.63","Director of Portsmouth International Port"
"Other Supplies","Misc Speciality Retail","Amznmktplace","Supplies and Services related expenditure","06/01/2021","104.13","Director of Children's Services and Education"
"Business To Business Facility/","Industrial Supplies - Def","Arco Limited (Ahpp)","Supplies and Services related expenditure","06/01/2021","21.68","Director of Housing, Neighbourhood and Building Services"
"Business To Business Services","Misc Publishing & Printing","The T-Shirt Man","Supplies and Services related expenditure","06/01/2021","216","Director of Children's Services and Education"
"Other Supplies","Misc Speciality Retail","Amznmktplace","Supplies and Services related expenditure","06/01/2021","58.28","Director of Adult Services"
"Transportation Conveyor","Passenger Railways","Sw Railway App","Transport related expenditure","06/01/2021","85.3","Director of Children's Services and Education"
"Miscellaneous","Continuity/Subscription Mercht","Zoom.Gbp","Supplies and Services related expenditure","06/01/2021","11.99","Director of Children's Services and Education"
"Business To Business Eqpt/Furn","Stationery/Office Supplies","Www.Banneruk.Com","Supplies and Services related expenditure","06/01/2021","113.64","Director of Children's Services and Education"
"Miscellaneous","Continuity/Subscription Mercht","Amazon Prime","Supplies and Services related expenditure","06/01/2021","6.66","Director of Children's Services and Education"
"Personal Service Provider","Legal Services Attorneys","Moore Blatch","Supplies and Services related expenditure","06/01/2021","180","Director of Children's Services and Education"
"Business To Business Eqpt/Furn","Stationery/Office Supplies","Www.Banneruk.Com","Supplies and Services related expenditure","06/01/2021","7.43","Director of Housing, Neighbourhood and Building Services"
"Business To Business Eqpt/Furn","Stationery/Office Supplies","Www.Banneruk.Com","Supplies and Services related expenditure","06/01/2021","275.92","Director of Housing, Neighbourhood and Building Services"
"Business To Business Facility/","Industrial Supplies - Def","Arco Limited (Sap)","Supplies and Services related expenditure","06/01/2021","85.89","Director of Housing, Neighbourhood and Building Services"
"Facilities/Repair Supplies","Home Supply Warehouse Stores","B & Q 1260","Supplies and Services related expenditure","06/01/2021","102.46","Director of Housing, Neighbourhood and Building Services"
"Automobile Rental","Automobile Rental Agency","Southern Motor Contrac","Transport related expenditure","06/01/2021","464.28","Director of Regeneration"
"Automobile Rental","Automobile Rental Agency","Southern Motor Contrac","Transport related expenditure","06/01/2021","3003.15","Director of Regeneration"
"Business To Business Eqpt/Furn","Book Stores","Stationery Office Book","Premises related expenditure","06/01/2021","20.84","Director of Children's Services and Education"
"Other Supplies","Misc Speciality Retail","Amznmktplace","Supplies and Services related expenditure","06/01/2021","40.79","Director of Children's Services and Education"
"Other Supplies","Misc Speciality Retail","Amznmktplace Amazon.Co.Uk","Supplies and Services related expenditure","06/01/2021","97.76","Director of Children's Services and Education"
"Utility","Utilities/Elec/Gas/H2O/Sani","Express Gas Centre","Premises related expenditure","06/01/2021","12.5","Director of Culture, Leisure & Regulatory Services"
"Other Supplies","Misc Speciality Retail","Amznmktplace","Supplies and Services related expenditure","06/01/2021","18.4","Director of Portsmouth International Port"
"Facilities/Repair Supplies","Hardware Stores","Toolstation Uk","Premises related expenditure","06/01/2021","34.96","Director of Children's Services and Education"
"Business To Business Services","Misc Publishing & Printing","Kd Events And Publishing","Supplies and Services related expenditure","06/01/2021","230","Director of Culture, Leisure & Regulatory Services"
"Equipment And Furniture","Household Appliance Stores","Www.Thebarcodewarehous","Supplies and Services related expenditure","06/01/2021","274.95","Director of Regeneration"
"Business To Business Eqpt/Furn","Stationery/Office Supplies","Www.Banneruk.Com","Supplies and Services related expenditure","06/01/2021","6.56","Director of Housing, Neighbourhood and Building Services"
"Business To Business Eqpt/Furn","Stationery/Office Supplies","Www.Banneruk.Com","Supplies and Services related expenditure","06/01/2021","35.91","Director of Housing, Neighbourhood and Building Services"
"Other Supplies","Misc Speciality Retail","Amznmktplace","Supplies and Services related expenditure","06/01/2021","21.58","Director of Adult Services"
"Government Service","Colleges/Univ/Jc/Profession","Www.Hope.Ac.Uk","Supplies and Services related expenditure","06/01/2021","75","Director of Children's Services and Education"
"Medical","Lab/Med/Hospital Equipment","Wightman & Parrish Ltd","Premises related expenditure","06/01/2021","14.08","Director of Housing, Neighbourhood and Building Services"
"Business To Business Facility/","Industrial Supplies - Def","Arco Limited (Sap)","Supplies and Services related expenditure","06/01/2021","15.14","Director of Housing, Neighbourhood and Building Services"
"Equipment And Furniture","Equip/Furn Rent/Lease Serv","Www.Safetyliftingear.C","Supplies and Services related expenditure","06/01/2021","34.57","Director of Housing, Neighbourhood and Building Services"
"Business To Business Eqpt/Furn","Stationery/Office Supplies","Www.Banneruk.Com","Supplies and Services related expenditure","06/01/2021","8.42","Director of Children's Services and Education"
"Business To Business Eqpt/Furn","Stationery/Office Supplies","Www.Banneruk.Com","Supplies and Services related expenditure","06/01/2021","22.68","Director of Children's Services and Education"
"Business Expenses/Services","Postage Stamps","Post Office Counter","Supplies and Services related expenditure","06/01/2021","1.29","Director of Children's Services and Education"
"Freight/Courier/Warehouse Svcs","Public Warehousing","Big Yellow - Portsmout","Agency and Third Party Payments related expenditure","06/01/2021","112.83","Director of Children's Services and Education"
"Business To Business Eqpt/Furn","Stationery/Office Supplies","Www.Banneruk.Com","Supplies and Services related expenditure","06/01/2021","28.77","Director of Housing, Neighbourhood and Building Services"
"Other Supplies","Misc Speciality Retail","Amznmktplace","Supplies and Services related expenditure","06/01/2021","16.23","Solent LEP"
"Other Supplies","Misc Speciality Retail","Amznmktplace","Supplies and Services related expenditure","06/01/2021","82.7","Solent LEP"
"Business Expenses/Services","Postage Stamps","Post Office Counter","Supplies and Services related expenditure","06/01/2021","198","Director of Housing, Neighbourhood and Building Services"
"Type of Retail Store","Sports/Riding Apparel Store","Nike","Supplies and Services related expenditure","06/01/2021","144.95","Director of Children's Services and Education"
"Business Expenses/Services","News Dealers/Newsstands","Www.Firstnews.Co.Uk","Supplies and Services related expenditure","06/01/2021","74.99","Director of Children's Services and Education"
"Facilities/Repair Supplies","Home Supply Warehouse Stores","B&q Direct","Premises related expenditure","06/01/2021","124.05","Director of Culture, Leisure & Regulatory Services"
"Government Service","Vocational/Trade Schools","Www.Defibshop.Co.Uk","Supplies and Services related expenditure","06/01/2021","77","Director of Children's Services and Education"
"Utility","Phone Serv/Equip Utility","Zoom.Us 888-799-9666","Supplies and Services related expenditure","06/01/2021","11.99","Director of Regeneration"
"Business Expenses/Services","Postage Stamps","Post Office Counter","Supplies and Services related expenditure","06/01/2021","1.88","Director of Regeneration"
"Other Supplies","Misc Speciality Retail","Amazon.Co.Uk","Supplies and Services related expenditure","06/01/2021","11.18","Director of Children's Services and Education"
"Business Services","Business Services - Default","Www.Phs.Co.Uk","Premises related expenditure","06/01/2021","320.27","Director of Adult Services"
"Type of Retail Store","Grocery Stores/Supermarkets","Lidl Gb","Premises related expenditure","06/01/2021","7.45","Director of Children's Services and Education"
"Other Supplies","Misc Speciality Retail","Amznmktplace","Supplies and Services related expenditure","06/01/2021","59.93","Director of Regeneration"
"Facilities/Repair Supplies","Home Supply Warehouse Stores","Wickes Fareham","Supplies and Services related expenditure","06/01/2021","1.67","Director of Regeneration"
"Other Supplies","Department Stores","The Range","Supplies and Services related expenditure","06/01/2021","44.13","Director of Regeneration"
"Business Expenses/Services","Courier Services","Parcelforce Wl","Supplies and Services related expenditure","06/01/2021","50.7","Director of Culture, Leisure & Regulatory Services"
"Facilities/Repair Supplies","Hardware Stores","Home Bargains","Supplies and Services related expenditure","06/01/2021","4.16","Director of Children's Services and Education"
"Medical","Lab/Med/Hospital Equipment","Incchoice","Supplies and Services related expenditure","06/01/2021","103.99","Director of Adult Services"
"Government Service","Govt Serv - Default","Disclosure & Barring","Supplies and Services related expenditure","06/01/2021","13","Director of Children's Services and Education"
"Government Service","Govt Serv - Default","Disclosure & Barring","Supplies and Services related expenditure","06/01/2021","13","Director of Children's Services and Education"
"Government Service","Govt Serv - Default","Disclosure & Barring","Supplies and Services related expenditure","06/01/2021","13","Director of Children's Services and Education"
"Utility","Computer Network/Info Svcs","123 Reg Ltd","Supplies and Services related expenditure","06/01/2021","160.99","Director of Children's Services and Education"
"Type of Retail Store","Drug Stores & Pharmacies","Boots,1020","Supplies and Services related expenditure","06/01/2021","43.62","Director of Children's Services and Education"
"Type of Retail Store","Grocery Stores/Supermarkets","Fruit Basket Ltd","Supplies and Services related expenditure","06/01/2021","68.08","Director of Adult Services"
"Type of Retail Store","Freezer/Meat Lockers","Dennis Edwards Food Serv","Supplies and Services related expenditure","06/01/2021","99.28","Director of Adult Services"
"Type of Retail Store","Freezer/Meat Lockers","Dennis Edwards Food Serv","Supplies and Services related expenditure","06/01/2021","0.71","Director of Adult Services"
"Other Supplies","Variety Stores","Wallgate Limited","Supplies and Services related expenditure","06/01/2021","803.44","Director of Housing, Neighbourhood and Building Services"
"Business To Business Facility/","Hardware Equipment/Supplies","Zoro Uk","Supplies and Services related expenditure","05/01/2021","11.13","Director of Housing, Neighbourhood and Building Services"
"Business To Business Facility/","Hardware Equipment/Supplies","Zoro Uk","Supplies and Services related expenditure","05/01/2021","43.25","Director of Regeneration"
"Personal Service Provider","Mgmt/Consult/Public Rel Ser","Tvlicensing.Co.Uk","Supplies and Services related expenditure","06/01/2021","157.5","Director of Housing, Neighbourhood and Building Services"
"Other Supplies","Misc Speciality Retail","Amznmktplace Amazon.Co.Uk","Supplies and Services related expenditure","06/01/2021","-39.16","Director of Children's Services and Education"
"Business Services","Advertising Services","Safetysigns","Premises related expenditure","06/01/2021","27.95","Director of Children's Services and Education"
"Business To Business Facility/","Industrial Supplies - Def","Arco Limited (Ahpp)","Supplies and Services related expenditure","06/01/2021","17.39","Director of Housing, Neighbourhood and Building Services"
"Business To Business Facility/","Electrical Parts/Equipment","Rs Components","Premises related expenditure","06/01/2021","37.34","Director of Portsmouth International Port"
"Type of Retail Store","Sporting Goods Stores","Sportsdirect.Com","Supplies and Services related expenditure","06/01/2021","16.63","Director of Children's Services and Education"
"Personal Service Provider","Professional Services - Def","Thomson Reuters UK Ltd","Supplies and Services related expenditure","07/01/2021","132.5","Director of Corporate Services"
"Personal Service Provider","Professional Services - Def","Thomson Reuters UK Ltd","Supplies and Services related expenditure","07/01/2021","132.5","Director of Corporate Services"
"Freight/Courier/Warehouse Svcs","Public Warehousing","Www.Safestore.Co.Uk","Premises related expenditure","07/01/2021","47.74","Director of Housing, Neighbourhood and Building Services"
"Freight/Courier/Warehouse Svcs","Public Warehousing","Www.Safestore.Co.Uk","Premises related expenditure","07/01/2021","161.3","Director of Housing, Neighbourhood and Building Services"
"Automobile Rental","Motor Home/Rv Rentals","Southsea Leisure Park","Agency and Third Party Payments related expenditure","07/01/2021","1481.67","Director of Housing, Neighbourhood and Building Services"
"Other Supplies","Misc Speciality Retail","Amznmktplace","Supplies and Services related expenditure","07/01/2021","26.73","Director of Portsmouth International Port"
"Other Supplies","Misc Speciality Retail","Amznmktplace","Supplies and Services related expenditure","07/01/2021","9.82","Director of Portsmouth International Port"
"Personal Service Provider","Computer Program/Sys Design","Paypal","Supplies and Services related expenditure","07/01/2021","30.77","Director of Corporate Services"
"Personal Service Provider","Professional Services - Def","Paypal","Supplies and Services related expenditure","07/01/2021","195","Director of Portsmouth International Port"
"Government Service","Schools - Default","Mbl Seminars","Employees related expenditure","07/01/2021","50","Director of Corporate Services"
"Government Service","Schools - Default","Mbl Seminars","Employees related expenditure","07/01/2021","50","Director of Corporate Services"
"Type of Retail Store","Electronics Sales","Currys Online","Supplies and Services related expenditure","07/01/2021","399","Director of Adult Services"
"Government Service","Govt Serv - Default","Isle Of Wight Council","Supplies and Services related expenditure","07/01/2021","154.26","Director of Culture, Leisure & Regulatory Services"
"Government Service","Govt Serv - Default","Isle Of Wight Council","Supplies and Services related expenditure","07/01/2021","771.3","Director of Culture, Leisure & Regulatory Services"
"Other Supplies","Discount Stores","Argos Ltd","Supplies and Services related expenditure","07/01/2021","44.96","Director of Children's Services and Education"
"Other Supplies","Misc Speciality Retail","Amznmktplace","Supplies and Services related expenditure","07/01/2021","54.57","Director of Children's Services and Education"
"Government Service","Govt Serv - Default","Pcc Internet Payment","Supplies and Services related expenditure","07/01/2021","-11","Director of Children's Services and Education"
"Government Service","Govt Serv - Default","Gen Register Office","Supplies and Services related expenditure","07/01/2021","14","Director of Children's Services and Education"
"Type of Retail Store","Grocery Stores/Supermarkets","Tesco Stores 4611","Supplies and Services related expenditure","07/01/2021","20","Director of Children's Services and Education"
"Type of Retail Store","Grocery Stores/Supermarkets","Tesco Stores 4611","Supplies and Services related expenditure","07/01/2021","20","Director of Children's Services and Education"
"Business To Business Eqpt/Furn","Stationery/Office Supplies","Www.Banneruk.Com","Supplies and Services related expenditure","07/01/2021","14.72","Director of Regeneration"
"Miscellaneous","Continuity/Subscription Mercht","Amazon Prime","Supplies and Services related expenditure","07/01/2021","6.66","Director of Adult Services"
"Type of Retail Store","Grocery Stores/Supermarkets","Tesco Stores 4579","Supplies and Services related expenditure","07/01/2021","7.5","Director of Culture, Leisure & Regulatory Services"
"Medical","Lab/Med/Hospital Equipment","Wightman & Parrish Ltd","Premises related expenditure","07/01/2021","19.2","Director of Adult Services"
"Medical","Lab/Med/Hospital Equipment","Wightman & Parrish Ltd","Supplies and Services related expenditure","07/01/2021","57.22","Director of Adult Services"
"Medical","Lab/Med/Hospital Equipment","Wightman & Parrish Ltd","Supplies and Services related expenditure","07/01/2021","52.48","Director of Adult Services"
"Medical","Lab/Med/Hospital Equipment","Wightman & Parrish Ltd","Supplies and Services related expenditure","07/01/2021","24","Director of Adult Services"
"Medical","Lab/Med/Hospital Equipment","Wightman & Parrish Ltd","Supplies and Services related expenditure","07/01/2021","110.99","Director of Adult Services"
"Medical","Lab/Med/Hospital Equipment","Wightman & Parrish Ltd","Premises related expenditure","07/01/2021","92.86","Director of Adult Services"
"Business To Business Facility/","Electrical Parts/Equipment","Networks Centre Lt","Premises related expenditure","07/01/2021","87.49","Director of Portsmouth International Port"
"Business To Business Facility/","Electrical Parts/Equipment","Edmundson Electrical","Premises related expenditure","07/01/2021","92.32","Director of Portsmouth International Port"
"Freight/Courier/Warehouse Svcs","Motor Freight Carriers","Shiply","Supplies and Services related expenditure","07/01/2021","26","Director of Children's Services and Education"
"Government Service","Govt Serv - Default","Pcc Internet Payment","Agency and Third Party Payments related expenditure","07/01/2021","11","Director of Culture, Leisure & Regulatory Services"
"Government Service","Govt Serv - Default","Portsmouth City Co","Supplies and Services related expenditure","07/01/2021","85","Director of Culture, Leisure & Regulatory Services"
"Type of Retail Store","Grocery Stores/Supermarkets","Tesco Store 3055","Supplies and Services related expenditure","07/01/2021","12.03","Director of Children's Services and Education"
"Type of Retail Store","Grocery Stores/Supermarkets","Tesco Store 3055","Supplies and Services related expenditure","07/01/2021","8.5","Director of Children's Services and Education"
"Type of Retail Store","Grocery Stores/Supermarkets","Tesco Store 3055","Supplies and Services related expenditure","07/01/2021","17.17","Director of Children's Services and Education"
"Eating And Drinking Places","Fast Food Restaurants","McDonalds","Agency and Third Party Payments related expenditure","07/01/2021","15.07","Director of Children's Services and Education"
"Eating And Drinking Places","Fast Food Restaurants","McDonalds","Agency and Third Party Payments related expenditure","07/01/2021","1.69","Director of Children's Services and Education"
"Eating And Drinking Places","Fast Food Restaurants","McDonalds","Agency and Third Party Payments related expenditure","07/01/2021","3.42","Director of Children's Services and Education"
"Type of Retail Store","Grocery Stores/Supermarkets","Wm Morrisons Store","Supplies and Services related expenditure","07/01/2021","22.84","Director of Children's Services and Education"
"Type of Retail Store","Grocery Stores/Supermarkets","Lidl Gb Portsmouth","Supplies and Services related expenditure","07/01/2021","15.07","Director of Children's Services and Education"
"Type of Retail Store","Grocery Stores/Supermarkets","Lidl Gb Portsmouth","Supplies and Services related expenditure","07/01/2021","31.48","Director of Children's Services and Education"
"Equipment And Furniture","Furniture/Equip Stores","Wf* Wayfair 3494513694","Supplies and Services related expenditure","07/01/2021","22.48","Director of Children's Services and Education"
"Business Expenses/Services","Postage Stamps","Post Office Home Phone","Supplies and Services related expenditure","07/01/2021","45.8","Director of Children's Services and Education"
"Other Supplies","Misc Speciality Retail","Amznmktplace","Supplies and Services related expenditure","07/01/2021","18.71","Director of Corporate Services"
"Other Supplies","Discount Stores","Argos Ltd","Supplies and Services related expenditure","07/01/2021","217.08","Director of Children's Services and Education"
"Type of Retail Store","Grocery Stores/Supermarkets","Asda Stores","Supplies and Services related expenditure","07/01/2021","50","Director of Children's Services and Education"
"Type of Retail Store","Grocery Stores/Supermarkets","Tesco Stores 2322","Premises related expenditure","07/01/2021","1.3","Director of Adult Services"
"Personal Service Provider","Computer Program/Sys Design","Stark Lab, Inc.","Supplies and Services related expenditure","07/01/2021","15.22","Director of Corporate Services"
"Equipment And Furniture","Household Appliance Stores","Machine Mart Ltd","Supplies and Services related expenditure","07/01/2021","-42.99","Director of Children's Services and Education"
"Facilities/Repair Supplies","Lumber/Build. Supply Stores","Selco Trading Ctr","Supplies and Services related expenditure","07/01/2021","139.93","Director of Children's Services and Education"
"Equipment And Furniture","Household Appliance Stores","Machine Mart Ltd","Supplies and Services related expenditure","07/01/2021","245.93","Director of Children's Services and Education"
"Type of Retail Store","Grocery Stores/Supermarkets","Tesco Stores 3123","Supplies and Services related expenditure","07/01/2021","4.4","Director of Adult Services"
"Business Services","Business Services - Default","Www.Green-Tech.Co.Uk","Capital related expenditure","07/01/2021","163.5","Capital - Housing RA"
"Miscellaneous","Financial Inst/Merchandise","Siemens Financial Svs","Supplies and Services related expenditure","07/01/2021","319.45","Director of Adult Services"
"Business To Business Facility/","Industrial Supplies - Def","Arco Limited (Sap)","Supplies and Services related expenditure","07/01/2021","54","Director of Housing, Neighbourhood and Building Services"
"Type of Retail Store","Grocery Stores/Supermarkets","Tesco Store 3055","Supplies and Services related expenditure","07/01/2021","2.03","Director of Housing, Neighbourhood and Building Services"
"Type of Retail Store","Grocery Stores/Supermarkets","Tesco Store 3055","Supplies and Services related expenditure","07/01/2021","2.49","Director of Housing, Neighbourhood and Building Services"
"Type of Retail Store","Grocery Stores/Supermarkets","Tesco Store 3055","Supplies and Services related expenditure","07/01/2021","29.93","Director of Housing, Neighbourhood and Building Services"
"Government Service","Govt Serv - Default","Pcc Internet Payment","Supplies and Services related expenditure","07/01/2021","44","Director of Children's Services and Education"
"Utility","Phone Serv/Equip Utility","Zoom.Us 888-799-9666","Supplies and Services related expenditure","07/01/2021","11.99","Chief Exec"
"Other Supplies","Misc Speciality Retail","Amznmktplace","Supplies and Services related expenditure","07/01/2021","18.74","Director of Children's Services and Education"
"Other Supplies","Misc Speciality Retail","Amz*electricalhub","Supplies and Services related expenditure","07/01/2021","-29.1","Director of Children's Services and Education"
"Miscellaneous","Continuity/Subscription Mercht","Google","Supplies and Services related expenditure","07/01/2021","52.99","Director of Children's Services and Education"
"Type of Retail Store","Grocery Stores/Supermarkets","Tesco Stores 4579","Premises related expenditure","07/01/2021","1.25","Director of Children's Services and Education"
"Type of Retail Store","Grocery Stores/Supermarkets","Tesco Stores 4579","Supplies and Services related expenditure","07/01/2021","4.17","Director of Children's Services and Education"
"Type of Retail Store","Grocery Stores/Supermarkets","Tesco Stores 4579","Supplies and Services related expenditure","07/01/2021","3.33","Director of Children's Services and Education"
"Type of Retail Store","Grocery Stores/Supermarkets","Tesco Stores 4579","Supplies and Services related expenditure","07/01/2021","125.84","Director of Children's Services and Education"
"Government Service","Tax Payments","Dvla Vehicle Tax","Transport related expenditure","07/01/2021","222.92","Director of Housing, Neighbourhood and Building Services"
"Other Supplies","Misc Speciality Retail","Amznmktplace","Supplies and Services related expenditure","07/01/2021","17.06","Director of Children's Services and Education"
"Other Supplies","Misc Speciality Retail","Amznbusiness","Supplies and Services related expenditure","07/01/2021","17.9","Director of Children's Services and Education"
"Miscellaneous","Charitable/Soc Service Orgs","Pp*ecrobertsce","Supplies and Services related expenditure","07/01/2021","-61.75","Director of Children's Services and Education"
"Type of Retail Store","Grocery Stores/Supermarkets","Asda Stores","Premises related expenditure","07/01/2021","17","Director of Children's Services and Education"
"Type of Retail Store","Grocery Stores/Supermarkets","Asda Groceries Online","Supplies and Services related expenditure","07/01/2021","41.17","Director of Regeneration"
"Business Expenses/Services","Postage Stamps","Post Office Counter","Supplies and Services related expenditure","07/01/2021","1.97","Director of Culture, Leisure & Regulatory Services"
"Business Expenses/Services","Courier Services","Parcelforce Wl","Supplies and Services related expenditure","07/01/2021","13.85","Director of Culture, Leisure & Regulatory Services"
"Business Expenses/Services","Courier Services","Parcelforce Wl","Supplies and Services related expenditure","07/01/2021","38.35","Director of Culture, Leisure & Regulatory Services"
"Amusement/Entertainment","Theatrical Producers","Www.Theatretokens.","Capital related expenditure","07/01/2021","30","Capital - Leader"
"Eating And Drinking Places","Eating Places/Restaurants","Southsea Beach Cafe","Capital related expenditure","07/01/2021","30","Capital - Leader"
"Other Supplies","Catalog Merchant","Www.Nisbets.Com","Premises related expenditure","07/01/2021","33.96","Director of Children's Services and Education"
"Government Service","Govt Serv - Default","Www.Ico.Org.Uk","Supplies and Services related expenditure","07/01/2021","60","Director of Children's Services and Education"
"Government Service","Govt Serv - Default","Hampshire County Counc","Supplies and Services related expenditure","07/01/2021","272.74","Director of Children's Services and Education"
"Other Supplies","Catalog Merchant","Www.Uk.Insight.Com","Supplies and Services related expenditure","07/01/2021","361.3","Director of Finance & Resources"
"Type of Retail Store","Grocery Stores/Supermarkets","Tesco Stores 4579","Supplies and Services related expenditure","07/01/2021","12.45","Director of Children's Services and Education"
"Other Supplies","Misc Gen Merchandise - Def","B&m 566 - Farlington","Supplies and Services related expenditure","07/01/2021","3.12","Director of Children's Services and Education"
"Other Supplies","Misc Gen Merchandise - Def","B&m 566 - Farlington","Supplies and Services related expenditure","07/01/2021","25","Director of Children's Services and Education"
"Type of Retail Store","Grocery Stores/Supermarkets","Sainsburys S/mkts","Supplies and Services related expenditure","07/01/2021","1.25","Director of Children's Services and Education"
"Type of Retail Store","Grocery Stores/Supermarkets","Sainsburys S/mkts","Supplies and Services related expenditure","07/01/2021","37","Director of Children's Services and Education"
"Miscellaneous","Civic/Social/Fraternal Assc","Highstreet Vouchers","Supplies and Services related expenditure","04/01/2021","136","Director of Children's Services and Education"
"Miscellaneous","Civic/Social/Fraternal Assc","Highstreet Vouchers","Supplies and Services related expenditure","04/01/2021","150","Director of Children's Services and Education"
"Business To Business Facility/","Industrial Supplies - Def","Arco Limited (Sap)","Supplies and Services related expenditure","05/01/2021","69.91","Director of Regeneration"
"Equipment And Furniture","Furniture/Equip Stores","Www.Divan-Beds.Co.Uk","Supplies and Services related expenditure","05/01/2021","362.5","Director of Children's Services and Education"
"Miscellaneous","Charitable/Soc Service Orgs","Www.Coram.Org.Uk","Supplies and Services related expenditure","06/01/2021","61.35","Director of Children's Services and Education"
"Business To Business Facility/","Electrical Parts/Equipment","Rs Components","Premises related expenditure","07/01/2021","200.7","Director of Portsmouth International Port"
"Business To Business Facility/","Industrial Supplies - Def","Arco Limited (Ahpp)","Supplies and Services related expenditure","07/01/2021","15","Director of Housing, Neighbourhood and Building Services"
"Business To Business Facility/","Industrial Supplies - Def","Arco Limited (Ahpp)","Supplies and Services related expenditure","07/01/2021","59.68","Director of Housing, Neighbourhood and Building Services"
"Business To Business Facility/","Hardware Equipment/Supplies","Zoro Uk","Capital related expenditure","07/01/2021","166.63","Capital - Housing RA"
"Business To Business Facility/","Industrial Supplies - Def","Arco Limited (Ahpp)","Supplies and Services related expenditure","07/01/2021","5.52","Director of Regeneration"
"Other Supplies","Catalog Merchant","Www.Uk.Insight.Com","Supplies and Services related expenditure","07/01/2021","22.14","Director of Housing, Neighbourhood and Building Services"
"Utility","Phone Serv/Equip Utility","Www.Broadbandbuyer.Co.Uk","Supplies and Services related expenditure","08/01/2021","13","Director of Housing, Neighbourhood and Building Services"
"Hotels And Motels","Premier Travel Inns","Premier Inn44010625","Agency and Third Party Payments related expenditure","08/01/2021","-440.95","Director of Housing, Neighbourhood and Building Services"
"Business To Business Eqpt/Furn","Book Stores","Www.Jctltd.Co.Uk","Supplies and Services related expenditure","08/01/2021","774.67","Director of Housing, Neighbourhood and Building Services"
"Medical","Lab/Med/Hospital Equipment","Wightman & Parrish Ltd","Premises related expenditure","08/01/2021","252.83","Director of Housing, Neighbourhood and Building Services"
"Facilities/Repair Supplies","Home Supply Warehouse Stores","B & Q 1260","Premises related expenditure","08/01/2021","14.41","Director of Children's Services and Education"
"Type of Retail Store","Grocery Stores/Supermarkets","Tesco Store 3055","Supplies and Services related expenditure","08/01/2021","28.63","Director of Adult Services"
"Type of Retail Store","Grocery Stores/Supermarkets","Aldi Stores Ltd","Supplies and Services related expenditure","08/01/2021","5.3","Director of Adult Services"
"Type of Retail Store","Grocery Stores/Supermarkets","Aldi Stores Ltd","Supplies and Services related expenditure","08/01/2021","64.06","Director of Adult Services"
"Other Supplies","Misc Speciality Retail","Amznmktplace Amazon.Co.Uk","Supplies and Services related expenditure","08/01/2021","2.59","Director of Children's Services and Education"
"Government Service","Govt Serv - Default","Portsmouth City Co","Transport related expenditure","08/01/2021","63.33","Director of Adult Services"
"Medical","Lab/Med/Hospital Equipment","Wightman & Parrish","Premises related expenditure","08/01/2021","59.55","Director of Housing, Neighbourhood and Building Services"
"Medical","Lab/Med/Hospital Equipment","Wightman & Parrish","Supplies and Services related expenditure","08/01/2021","303.8","Director of Housing, Neighbourhood and Building Services"
"Business Services","Advertising Services","Facebk Jr42k2t8z2","Supplies and Services related expenditure","08/01/2021","300","Director of Corporate Services"
"Type of Retail Store","Grocery Stores/Supermarkets","Tesco Stores 4579","Supplies and Services related expenditure","08/01/2021","22.5","Director of Children's Services and Education"
"Facilities/Repair Supplies","Home Supply Warehouse Stores","B & Q 1260","Supplies and Services related expenditure","08/01/2021","33.33","Director of Children's Services and Education"
"Transportation Conveyor","Passenger Railways","Trainline","Transport related expenditure","08/01/2021","4.88","Director of Children's Services and Education"
"Hotels And Motels","Premier Travel Inns","Premier Inn44010625","Supplies and Services related expenditure","08/01/2021","260","Director of Children's Services and Education"
"Type of Retail Store","Grocery Stores/Supermarkets","Tesco Stores 4611","Supplies and Services related expenditure","08/01/2021","20","Director of Children's Services and Education"
"Other Supplies","Department Stores","Www.Johnlewis.Com","Supplies and Services related expenditure","08/01/2021","825.17","Director of Children's Services and Education"
"Business To Business Eqpt/Furn","Stationery/Office Supplies","Www.Banneruk.Com","Supplies and Services related expenditure","08/01/2021","15.51","Director of Regeneration"
"Other Supplies","Misc Speciality Retail","Amznmktplace Amazon.Co.Uk","Supplies and Services related expenditure","08/01/2021","7.49","Director of Culture, Leisure & Regulatory Services"
"Other Supplies","Discount Stores","Argos Ltd","Supplies and Services related expenditure","08/01/2021","39.17","Director of Children's Services and Education"
"Business Services","Business Services - Default","Eb *shaping Portsmouth","Employees related expenditure","08/01/2021","5","Director of Housing, Neighbourhood and Building Services"
"Business To Business Facility/","Hardware Equipment/Supplies","Croma Locksmiths & Sec","Premises related expenditure","08/01/2021","244","Director of Portsmouth International Port"
"Type of Retail Store","Grocery Stores/Supermarkets","Tesco Stores 4611","Supplies and Services related expenditure","08/01/2021","20","Director of Children's Services and Education"
"Business To Business Eqpt/Furn","Computers/Peripherals/Software","Hp Inc UK Limited","Supplies and Services related expenditure","08/01/2021","45","Director of Children's Services and Education"
"Type of Retail Store","Grocery Stores/Supermarkets","Tesco Stores 6002","Supplies and Services related expenditure","08/01/2021","127.13","Director of Children's Services and Education"
"Type of Retail Store","Grocery Stores/Supermarkets","Tesco Stores 6002","Supplies and Services related expenditure","08/01/2021","2.25","Director of Children's Services and Education"
"Miscellaneous","Member Organizations - Def","Www.Etoa.Org","Supplies and Services related expenditure","08/01/2021","299","Director of Culture, Leisure & Regulatory Services"
"Other Supplies","Misc Speciality Retail","Amznmktplace","Supplies and Services related expenditure","08/01/2021","45.9","Director of Adult Services"
"Other Supplies","Misc Speciality Retail","Amznmktplace","Supplies and Services related expenditure","08/01/2021","21.63","Director of Children's Services and Education"
"Miscellaneous","Charitable/Soc Service Orgs","Www.Lasa.Org.Uk","Supplies and Services related expenditure","08/01/2021","250","Director of Housing, Neighbourhood and Building Services"
"Type of Retail Store","Grocery Stores/Supermarkets","Asda Stores","Supplies and Services related expenditure","08/01/2021","50","Director of Children's Services and Education"
"Other Supplies","Misc Speciality Retail","Amznbusiness","Supplies and Services related expenditure","08/01/2021","17.67","Director of Housing, Neighbourhood and Building Services"
"Type of Retail Store","Grocery Stores/Supermarkets","Tesco Stores 4611","Supplies and Services related expenditure","08/01/2021","12.5","Director of Children's Services and Education"
"Business To Business Facility/","Industrial Supplies - Def","Arco Ltd","Supplies and Services related expenditure","08/01/2021","19.56","Director of Regeneration"
"Miscellaneous","Member Organizations - Def","Iz *laeog","Supplies and Services related expenditure","08/01/2021","100","Director of Culture, Leisure & Regulatory Services"
"Other Supplies","Discount Stores","Argos Ltd","Supplies and Services related expenditure","08/01/2021","202.95","Director of Children's Services and Education"
"Type of Retail Store","Electronics Sales","Currys Online","Supplies and Services related expenditure","08/01/2021","374.96","Director of Children's Services and Education"
"Type of Retail Store","Electronics Sales","Currys Online","Supplies and Services related expenditure","08/01/2021","374.96","Director of Children's Services and Education"
"Type of Retail Store","Electronics Sales","Currys Online","Supplies and Services related expenditure","08/01/2021","374.96","Director of Children's Services and Education"
"Other Supplies","Misc Speciality Retail","Amznmktplace","Supplies and Services related expenditure","08/01/2021","20.83","Director of Housing, Neighbourhood and Building Services"
"Business Expenses/Services","Stationery Stores","Www.Primaryteaching.Co","Supplies and Services related expenditure","08/01/2021","73.2","Director of Children's Services and Education"
"Facilities/Repair Supplies","Home Supply Warehouse Stores","B & Q 1260","Supplies and Services related expenditure","08/01/2021","85","Director of Housing, Neighbourhood and Building Services"
"Facilities/Repair Supplies","Home Supply Warehouse Stores","B & Q 1260","Capital related expenditure","08/01/2021","123.87","Capital - Housing RA"
"Other Supplies","Misc Speciality Retail","Amznmktplace","Supplies and Services related expenditure","08/01/2021","13.25","Director of Housing, Neighbourhood and Building Services"
"Other Supplies","Discount Stores","Argos Ltd","Supplies and Services related expenditure","08/01/2021","15.99","Director of Children's Services and Education"
"Type of Retail Store","Grocery Stores/Supermarkets","Asda","Supplies and Services related expenditure","08/01/2021","95","Director of Children's Services and Education"
"Other Supplies","Misc Speciality Retail","Amznmktplace Amazon.Co.Uk","Supplies and Services related expenditure","08/01/2021","-4.58","Director of Children's Services and Education"
"Facilities/Repair Supplies","Hardware Stores","Toolstation Uk","Supplies and Services related expenditure","08/01/2021","61.63","Director of Children's Services and Education"
"Business To Business Services","Information Retrieval Services","Www.Restore.Co.Uk","Supplies and Services related expenditure","08/01/2021","8.97","Solent LEP"
"Business To Business Eqpt/Furn","Stationery/Office Supplies","Www.Banneruk.Com","Supplies and Services related expenditure","08/01/2021","13.66","Director of Finance & Resources"
"Other Supplies","Misc Gen Merchandise - Def","B&m Retail Ltd","Supplies and Services related expenditure","08/01/2021","27.58","Director of Children's Services and Education"
"Business To Business Eqpt/Furn","Stationery/Office Supplies","Www.Banneruk.Com","Supplies and Services related expenditure","08/01/2021","13.54","Director of Housing, Neighbourhood and Building Services"
"Other Supplies","Misc Speciality Retail","Amznmktplace","Supplies and Services related expenditure","08/01/2021","29.1","Director of Children's Services and Education"
"Automobile Services & Supplies","Service Stations","Milton Road Servic","Transport related expenditure","08/01/2021","51.07","Director of Housing, Neighbourhood and Building Services"
"Government Service","Tax Payments","Dvla Vehicle Tax","Transport related expenditure","08/01/2021","139.58","Director of Housing, Neighbourhood and Building Services"
"Other Supplies","Department Stores","Southern Co-Op 0007","Supplies and Services related expenditure","08/01/2021","11.25","Director of Children's Services and Education"
"Other Supplies","Misc Speciality Retail","Amazon.Co.Uk","Supplies and Services related expenditure","08/01/2021","41.67","Director of Children's Services and Education"
"Utility","Phone Serv/Equip Utility","Zoom.Us 888-799-9666","Supplies and Services related expenditure","08/01/2021","11.99","Director of Regeneration"
"Business To Business Other Sup","Uniforms & Commercial Clothing","Alexandra Website","Supplies and Services related expenditure","08/01/2021","79.9","Director of Children's Services and Education"
"Other Supplies","Misc Speciality Retail","Amznmktplace","Premises related expenditure","08/01/2021","1.91","Director of Children's Services and Education"
"Business Expenses/Services","Postage Stamps","Post Office Counter","Supplies and Services related expenditure","08/01/2021","11.4","Director of Children's Services and Education"
"Business To Business Eqpt/Furn","Stationery/Office Supplies","Www.Banneruk.Com","Supplies and Services related expenditure","08/01/2021","85.62","Director of Children's Services and Education"
"Business To Business Eqpt/Furn","Stationery/Office Supplies","Www.Banneruk.Com","Supplies and Services related expenditure","08/01/2021","10.4","Director of Children's Services and Education"
"Personal Service Provider","Commercial Photo/Art/Graph","Mallatite Limited","Supplies and Services related expenditure","08/01/2021","477.32","Director of Regeneration"
"Business Expenses/Services","Courier Services","Parcelforce Wl","Supplies and Services related expenditure","08/01/2021","10.95","Director of Culture, Leisure & Regulatory Services"
"Other Supplies","Misc Speciality Retail","Amznmktplace","Agency and Third Party Payments related expenditure","08/01/2021","26.98","Director of Children's Services and Education"
"Eating And Drinking Places","Fast Food Restaurants","McDonalds","Agency and Third Party Payments related expenditure","08/01/2021","22.93","Director of Children's Services and Education"
"Eating And Drinking Places","Fast Food Restaurants","McDonalds","Agency and Third Party Payments related expenditure","08/01/2021","5.07","Director of Children's Services and Education"
"Eating And Drinking Places","Eating Places/Restaurants","Blue Cobra","Agency and Third Party Payments related expenditure","08/01/2021","42","Director of Children's Services and Education"
"Clothing Services","Mens/Womens Clothing Stores","Onlymaker.Com","Supplies and Services related expenditure","08/01/2021","51.71","Director of Children's Services and Education"
"Government Service","Schools - Default","National Ed Group Ltd","Supplies and Services related expenditure","08/01/2021","50","Director of Children's Services and Education"
"Other Supplies","Misc Speciality Retail","Amznmktplace","Supplies and Services related expenditure","08/01/2021","35.82","Director of Culture, Leisure & Regulatory Services"
"Other Supplies","Misc Speciality Retail","Amznbusiness","Supplies and Services related expenditure","08/01/2021","45.98","Director of Corporate Services"
"Transportation Conveyor","Passenger Railways","Swrailwayselfserve","Transport related expenditure","08/01/2021","3.8","Director of Children's Services and Education"
"Medical","Lab/Med/Hospital Equipment","Wightman & Parrish","Premises related expenditure","08/01/2021","53.75","Director of Adult Services"
"Other Supplies","Misc Speciality Retail","Amznmktplace","Supplies and Services related expenditure","09/01/2021","12.9","Director of Housing, Neighbourhood and Building Services"
"Other Supplies","Misc Speciality Retail","Amz*amazon.Co.Uk","Supplies and Services related expenditure","09/01/2021","-68.33","Director of Regeneration"
"Other Supplies","Misc Speciality Retail","Amznmktplace","Supplies and Services related expenditure","09/01/2021","214.08","Director of Children's Services and Education"
"Type of Retail Store","Grocery Stores/Supermarkets","Www.Iceland.Co.Uk","Supplies and Services related expenditure","09/01/2021","100.5","Director of Adult Services"
"Type of Retail Store","Grocery Stores/Supermarkets","One Stop Stores 2904","Supplies and Services related expenditure","09/01/2021","1.2","Director of Children's Services and Education"
"Type of Retail Store","Grocery Stores/Supermarkets","Tesco Stores 4579","Premises related expenditure","09/01/2021","5","Director of Children's Services and Education"
"Type of Retail Store","Grocery Stores/Supermarkets","Tesco Stores 4579","Supplies and Services related expenditure","09/01/2021","3.38","Director of Children's Services and Education"
"Type of Retail Store","Grocery Stores/Supermarkets","Tesco Stores 4579","Supplies and Services related expenditure","09/01/2021","16.1","Director of Children's Services and Education"
"Other Supplies","Misc Speciality Retail","Amznbusiness","Supplies and Services related expenditure","09/01/2021","10.55","Director of Children's Services and Education"
"Other Supplies","Misc Speciality Retail","Amznmktplace","Supplies and Services related expenditure","09/01/2021","30.86","Director of Children's Services and Education"
"Other Supplies","Misc Speciality Retail","Amznmktplace","Supplies and Services related expenditure","09/01/2021","3.89","Director of Children's Services and Education"
"Other Supplies","Misc Speciality Retail","Amznmktplace","Supplies and Services related expenditure","09/01/2021","4.79","Director of Children's Services and Education"
"Other Supplies","Misc Speciality Retail","Amznmktplace Amazon.Co.Uk","Supplies and Services related expenditure","09/01/2021","17.7","Director of Regeneration"
"Other Supplies","Misc Speciality Retail","Amznmktplace Amazon.Co.Uk","Supplies and Services related expenditure","09/01/2021","12.49","Director of Regeneration"
"Other Supplies","Misc Speciality Retail","Amznmktplace","Supplies and Services related expenditure","09/01/2021","45.08","Director of Children's Services and Education"
"Type of Retail Store","Grocery Stores/Supermarkets","Tesco Stores 4579","Supplies and Services related expenditure","09/01/2021","8.33","Director of Children's Services and Education"
"Type of Retail Store","Grocery Stores/Supermarkets","Tesco Stores 4579","Agency and Third Party Payments related expenditure","09/01/2021","0.57","Director of Children's Services and Education"
"Type of Retail Store","Grocery Stores/Supermarkets","Tesco Stores 4579","Supplies and Services related expenditure","09/01/2021","1","Director of Children's Services and Education"
"Other Supplies","Misc Speciality Retail","Amznmktplace","Supplies and Services related expenditure","09/01/2021","79.37","Director of Children's Services and Education"
"Type of Retail Store","Grocery Stores/Supermarkets","Wm Morrisons Store","Supplies and Services related expenditure","09/01/2021","24.38","Director of Children's Services and Education"
"Type of Retail Store","Grocery Stores/Supermarkets","Wm Morrisons Store","Supplies and Services related expenditure","09/01/2021","4.6","Director of Children's Services and Education"
"Type of Retail Store","Grocery Stores/Supermarkets","Wm Morrisons Store","Supplies and Services related expenditure","09/01/2021","3.96","Director of Children's Services and Education"
"Other Supplies","Misc Gen Merchandise - Def","Wilko Retail Limited","Transport related expenditure","10/01/2021","14.25","Director of Regeneration"
"Automobile Services & Supplies","Service Stations","Shell Fratton 178","Transport related expenditure","10/01/2021","54.36","Director of Regeneration"
"Facilities/Repair Supplies","Home Supply Warehouse Stores","B & Q 1260","Supplies and Services related expenditure","10/01/2021","11.18","Director of Housing, Neighbourhood and Building Services"
"Other Supplies","Misc Speciality Retail","Amznmktplace","Supplies and Services related expenditure","10/01/2021","32.48","Director of Housing, Neighbourhood and Building Services"
"Type of Retail Store","Grocery Stores/Supermarkets","Tesco Stores 4579","Agency and Third Party Payments related expenditure","10/01/2021","20","Director of Children's Services and Education"
"Hotels And Motels","Travelodge","Travelodge Gb0000","Agency and Third Party Payments related expenditure","10/01/2021","33.98","Director of Housing, Neighbourhood and Building Services"
"Miscellaneous","Other Direct Marketers","Amazon.Co.Uk","Supplies and Services related expenditure","10/01/2021","45.69","Director of Children's Services and Education"
"Miscellaneous","Other Direct Marketers","Amazon.Co.Uk","Premises related expenditure","10/01/2021","52.49","Director of Children's Services and Education"
"Miscellaneous","Other Direct Marketers","Amazon.Co.Uk","Supplies and Services related expenditure","10/01/2021","52.49","Director of Children's Services and Education"
"Type of Retail Store","Grocery Stores/Supermarkets","Asda Groceries Online","Supplies and Services related expenditure","10/01/2021","-0.84","Director of Adult Services"
"Type of Retail Store","Grocery Stores/Supermarkets","Asda Groceries Online","Supplies and Services related expenditure","10/01/2021","75.32","Director of Adult Services"
"Facilities/Repair Supplies","Lumber/Build. Supply Stores","Screwfix Direct","Premises related expenditure","10/01/2021","37.49","Director of Portsmouth International Port"
"Facilities/Repair Supplies","Hardware Stores","Www Lsengineers Co Uk","Supplies and Services related expenditure","10/01/2021","122.85","Director of Housing, Neighbourhood and Building Services"
"Other Supplies","Misc Speciality Retail","Amznbusiness","Supplies and Services related expenditure","10/01/2021","15.98","Director of Children's Services and Education"
"Other Supplies","Misc Speciality Retail","Amznbusiness","Supplies and Services related expenditure","10/01/2021","18.33","Director of Children's Services and Education"
"Other Supplies","Misc Speciality Retail","Amznmktplace","Supplies and Services related expenditure","10/01/2021","15.66","Director of Children's Services and Education"
"Other Supplies","Misc Speciality Retail","Amznmktplace","Supplies and Services related expenditure","10/01/2021","28.82","Director of Children's Services and Education"
"Miscellaneous","Continuity/Subscription Mercht","Amazon Prime","Supplies and Services related expenditure","10/01/2021","-4.32","Director of Children's Services and Education"
"Hotels And Motels","Hotel Ibis","Hotel Ibis","Agency and Third Party Payments related expenditure","10/01/2021","33.33","Director of Housing, Neighbourhood and Building Services"
"Personal Service Provider","Computer Program/Sys Design","Fontawesome.Com","Supplies and Services related expenditure","10/01/2021","45.64","Director of Corporate Services"
"Other Supplies","Misc Gen Merchandise - Def","Infectcontrol-Sol","Supplies and Services related expenditure","10/01/2021","416.65","Director of Children's Services and Education"
"Other Supplies","Misc Speciality Retail","Amznmktplace","Supplies and Services related expenditure","10/01/2021","24.48","Director of Culture, Leisure & Regulatory Services"
"Type of Retail Store","Grocery Stores/Supermarkets","Tesco Stores 4579","Supplies and Services related expenditure","10/01/2021","9.58","Director of Children's Services and Education"
"Type of Retail Store","Grocery Stores/Supermarkets","Tesco Stores 4579","Supplies and Services related expenditure","10/01/2021","36.48","Director of Children's Services and Education"
"Other Supplies","Misc Speciality Retail","Amznmktplace Amazon.Co.Uk","Supplies and Services related expenditure","10/01/2021","19.98","Director of Children's Services and Education"
"Type of Retail Store","Grocery Stores/Supermarkets","Lidl Gb Portchester","Supplies and Services related expenditure","10/01/2021","11.89","Director of Children's Services and Education"
"Business To Business Facility/","Industrial Supplies - Def","Arco Limited (Sap)","Supplies and Services related expenditure","06/01/2021","36.82","Director of Housing, Neighbourhood and Building Services"
"Personal Service Provider","Mgmt/Consult/Public Rel Ser","Tvlicensing.Co.Uk","Supplies and Services related expenditure","08/01/2021","157.5","Director of Housing, Neighbourhood and Building Services"
"Business To Business Facility/","Industrial Supplies - Def","Arco Limited (Ahpp)","Supplies and Services related expenditure","08/01/2021","34.44","Director of Portsmouth International Port"
"Other Supplies","Misc Speciality Retail","Amznmktplace Amazon.Co.Uk","Supplies and Services related expenditure","10/01/2021","19.56","Director of Housing, Neighbourhood and Building Services"
"Other Supplies","Misc Speciality Retail","Amznmktplace Amazon.Co.Uk","Supplies and Services related expenditure","10/01/2021","149.99","Solent LEP"
"Other Supplies","Misc Speciality Retail","Amazon.Co.Uk","Supplies and Services related expenditure","10/01/2021","166.65","Director of Children's Services and Education"
"Eating And Drinking Places","Fast Food Restaurants","Starbucks Coffee","Agency and Third Party Payments related expenditure","10/01/2021","6.6","Director of Children's Services and Education"
"Personal Service Provider","Professional Services - Def","Www.Mib.Org.Uk","Supplies and Services related expenditure","11/01/2021","4.5","Director of Finance & Resources"
"Other Supplies","Misc Speciality Retail","Amznmktplace","Supplies and Services related expenditure","11/01/2021","17.9","Director of Housing, Neighbourhood and Building Services"
"Facilities/Repair Supplies","Home Supply Warehouse Stores","B & Q 1260","Premises related expenditure","11/01/2021","120","Director of Adult Services"
"Hotels And Motels","Hotel Ibis","Hotel Ibis","Agency and Third Party Payments related expenditure","11/01/2021","35.24","Director of Housing, Neighbourhood and Building Services"
"Facilities Maintenance","Clean/Maint/Janitoral Serv","Initial Washroom","Agency and Third Party Payments related expenditure","11/01/2021","198","Director of Regeneration"
"Business To Business Facility/","Industrial Supplies - Def","Arco Limited (Sap)","Transport related expenditure","11/01/2021","34.4","Director of Regeneration"
"Type of Retail Store","Grocery Stores/Supermarkets","Tesco Stores 4611","Supplies and Services related expenditure","11/01/2021","50","Director of Children's Services and Education"
"Other Supplies","Misc Speciality Retail","Amznmktplace Amazon.Co.Uk","Supplies and Services related expenditure","11/01/2021","21.24","Director of Children's Services and Education"
"Business To Business Facility/","Industrial Supplies - Def","T H White Ltd","Transport related expenditure","11/01/2021","212.84","Director of Culture, Leisure & Regulatory Services"
"Facilities/Repair Supplies","Lawn/Garden Supply/Nursery","Www.Tudorenvironmental","Supplies and Services related expenditure","11/01/2021","400.35","Director of Culture, Leisure & Regulatory Services"
"Miscellaneous","Continuity/Subscription Mercht","Amazon Prime","Supplies and Services related expenditure","11/01/2021","6.66","Director of Children's Services and Education"
"Business Expenses/Services","Postage Stamps","Post Office Counter","Supplies and Services related expenditure","11/01/2021","6.78","Director of Children's Services and Education"
"Business To Business Eqpt/Furn","Stationery/Office Supplies","Www.Banneruk.Com","Supplies and Services related expenditure","11/01/2021","31.08","Director of Adult Services"
"Type of Retail Store","Grocery Stores/Supermarkets","Tesco Gift Card","Supplies and Services related expenditure","11/01/2021","80","Director of Adult Services"
"Business To Business Facility/","Industrial Supplies - Def","Arco Limited (Ahpp)","Supplies and Services related expenditure","11/01/2021","48.89","Director of Housing, Neighbourhood and Building Services"
"Facilities/Repair Supplies","Home Supply Warehouse Stores","B & Q 1260","Supplies and Services related expenditure","11/01/2021","95.41","Director of Regeneration"
"Equipment And Furniture","Equip/Furn Rent/Lease Serv","Storage On Site Vt","Supplies and Services related expenditure","11/01/2021","3260","Director of Culture, Leisure & Regulatory Services"
"Type of Retail Store","Grocery Stores/Supermarkets","Tesco Stores 4611","Supplies and Services related expenditure","11/01/2021","30","Director of Children's Services and Education"
"Business To Business Eqpt/Furn","Computer Software Stores","Sp * Glamify Fashion","Supplies and Services related expenditure","11/01/2021","71.24","Director of Children's Services and Education"
"Miscellaneous","Continuity/Subscription Mercht","Amazon Prime","Supplies and Services related expenditure","11/01/2021","-6.66","Director of Children's Services and Education"
"Miscellaneous","Continuity/Subscription Mercht","Amazon Prime","Supplies and Services related expenditure","11/01/2021","-6.66","Director of Children's Services and Education"
"Government Service","Govt Serv - Default","Pcc Internet Payment","Supplies and Services related expenditure","11/01/2021","11","Director of Children's Services and Education"
"Transportation Conveyor","Local Commuter Transport","Www.Hovertravel.Com","Transport related expenditure","11/01/2021","24.6","Director of Children's Services and Education"
"Business Services","Business Services - Default","Hoo*hootsuite Inc","Supplies and Services related expenditure","11/01/2021","32","Director of Culture, Leisure & Regulatory Services"
"Miscellaneous","Continuity/Subscription Mercht","Amazon Prime","Supplies and Services related expenditure","11/01/2021","-6.66","Director of Housing, Neighbourhood and Building Services"
"Type of Retail Store","Grocery Stores/Supermarkets","Asda Stores","Supplies and Services related expenditure","11/01/2021","60.83","Director of Housing, Neighbourhood and Building Services"
"Business To Business Facility/","Hardware Equipment/Supplies","Croma Locksmiths & Sec","Supplies and Services related expenditure","11/01/2021","7.67","Director of Housing, Neighbourhood and Building Services"
"Other Supplies","Department Stores","Southern Co-Op 0328","Supplies and Services related expenditure","11/01/2021","49","Director of Children's Services and Education"
"Other Supplies","Department Stores","Southern Co-Op 0328","Supplies and Services related expenditure","11/01/2021","49","Director of Children's Services and Education"
"Business To Business Facility/","Electrical Parts/Equipment","Edmundson Electrical","Premises related expenditure","11/01/2021","371.05","Director of Portsmouth International Port"
"Business To Business Eqpt/Furn","Computer Software Stores","Sp * Orion-Rackcabinet","Premises related expenditure","11/01/2021","510","Director of Portsmouth International Port"
"Type of Retail Store","Grocery Stores/Supermarkets","Tesco Stores 2322","Supplies and Services related expenditure","11/01/2021","20.92","Director of Children's Services and Education"
"Type of Retail Store","Grocery Stores/Supermarkets","Wm Morrisons Store","Supplies and Services related expenditure","11/01/2021","41.11","Director of Children's Services and Education"
"Type of Retail Store","Grocery Stores/Supermarkets","Wm Morrisons Store","Supplies and Services related expenditure","11/01/2021","2.33","Director of Children's Services and Education"
"Type of Retail Store","Grocery Stores/Supermarkets","Wm Morrisons Store","Premises related expenditure","11/01/2021","9.13","Director of Children's Services and Education"
"Type of Retail Store","Grocery Stores/Supermarkets","Wm Morrisons Store","Supplies and Services related expenditure","11/01/2021","7.5","Director of Children's Services and Education"
"Type of Retail Store","Grocery Stores/Supermarkets","Lidl Gb Portsmouth","Premises related expenditure","11/01/2021","14.15","Director of Children's Services and Education"
"Type of Retail Store","Grocery Stores/Supermarkets","Lidl Gb Portsmouth","Supplies and Services related expenditure","11/01/2021","82.29","Director of Children's Services and Education"
"Business To Business Facility/","Industrial Supplies - Def","Arco Limited (Sap)","Supplies and Services related expenditure","11/01/2021","31.07","Director of Culture, Leisure & Regulatory Services"
"Type of Retail Store","Grocery Stores/Supermarkets","Fruit Basket Ltd","Supplies and Services related expenditure","11/01/2021","43.06","Director of Culture, Leisure & Regulatory Services"
"Business Expenses/Services","Postage Stamps","Post Office Counter","Supplies and Services related expenditure","11/01/2021","33","Director of Housing, Neighbourhood and Building Services"
"Type of Retail Store","Grocery Stores/Supermarkets","Tesco Stores 4579","Supplies and Services related expenditure","11/01/2021","16.33","Director of Children's Services and Education"
"Type of Retail Store","Grocery Stores/Supermarkets","Tesco Stores 4579","Supplies and Services related expenditure","11/01/2021","29.13","Director of Children's Services and Education"
"Type of Retail Store","Hobby/Toy/Game Stores","Smythstoys.Com","Supplies and Services related expenditure","11/01/2021","49.98","Director of Children's Services and Education"
"Other Supplies","Misc Speciality Retail","Amznmktplace","Supplies and Services related expenditure","11/01/2021","17.26","Director of Children's Services and Education"
"Other Supplies","Misc Speciality Retail","Amznmktplace","Supplies and Services related expenditure","11/01/2021","17.26","Director of Children's Services and Education"
"Other Supplies","Misc Speciality Retail","Amznmktplace","Supplies and Services related expenditure","11/01/2021","28.33","Director of Children's Services and Education"
"Business To Business Eqpt/Furn","Stationery/Office Supplies","Www.Banneruk.Com","Supplies and Services related expenditure","11/01/2021","504.05","Director of Culture, Leisure & Regulatory Services"
"Medical","Lab/Med/Hospital Equipment","Wightman & Parrish","Supplies and Services related expenditure","11/01/2021","82.2","Director of Housing, Neighbourhood and Building Services"
"Transportation Conveyor","Parking Lots, Meters, Garages","3c_*portsmouth City Coun","Transport related expenditure","11/01/2021","12","Director of Housing, Neighbourhood and Building Services"
"Personal Service Provider","Accountants/Auditors/Bookpr","Www.Aat-Org.Uk","Supplies and Services related expenditure","11/01/2021","101","Director of Finance & Resources"
"Business To Business Facility/","Hardware Equipment/Supplies","Croma Locksmiths & Sec","Supplies and Services related expenditure","11/01/2021","719.74","Director of Housing, Neighbourhood and Building Services"
"Type of Retail Store","Grocery Stores/Supermarkets","Wm Morrisons Store","Supplies and Services related expenditure","11/01/2021","76.86","Director of Children's Services and Education"
"Facilities Maintenance","Clean/Maint/Janitoral Serv","Wessex Cleaning Equipment","Supplies and Services related expenditure","11/01/2021","12.93","Director of Housing, Neighbourhood and Building Services"
"Facilities/Repair Supplies","Home Supply Warehouse Stores","B & Q 1260","Capital related expenditure","11/01/2021","11.62","Capital - Housing RA"
"Type of Retail Store","Grocery Stores/Supermarkets","Tesco Store 3055","Supplies and Services related expenditure","11/01/2021","19.14","Director of Children's Services and Education"
"Medical","Lab/Med/Hospital Equipment","Wightman & Parrish Ltd","Premises related expenditure","11/01/2021","92.59","Director of Housing, Neighbourhood and Building Services"
"Business To Business Eqpt/Furn","Stationery/Office Supplies","Www.Banneruk.Com","Supplies and Services related expenditure","11/01/2021","48.98","Director of Children's Services and Education"
"Business To Business Facility/","Hardware Equipment/Supplies","Www.Mad4tools.Com","Supplies and Services related expenditure","11/01/2021","39.87","Director of Culture, Leisure & Regulatory Services"
"Type of Retail Store","Music Stores/Pianos","Www.Outoftheark.Com","Supplies and Services related expenditure","11/01/2021","100","Director of Children's Services and Education"
"Other Supplies","Misc Speciality Retail","Amznmktplace","Supplies and Services related expenditure","11/01/2021","46.63","Director of Children's Services and Education"
"Government Service","Colleges/Univ/Jc/Profession","The Free Test Comp","Supplies and Services related expenditure","11/01/2021","149.17","Director of Housing, Neighbourhood and Building Services"
"Type of Retail Store","Grocery Stores/Supermarkets","Asda Groceries Online","Supplies and Services related expenditure","11/01/2021","19.49","Director of Children's Services and Education"
"Type of Retail Store","Grocery Stores/Supermarkets","Asda Groceries Online","Supplies and Services related expenditure","11/01/2021","34.11","Director of Children's Services and Education"
"Business To Business Eqpt/Furn","Stationery/Office Supplies","Www.Banneruk.Com","Supplies and Services related expenditure","11/01/2021","6.77","Director of Adult Services"
"Miscellaneous","Member Organizations - Def","Www.Cscs.Uk.Com","Supplies and Services related expenditure","11/01/2021","30","Director of Regeneration"
"Miscellaneous","Member Organizations - Def","Www.Cscs.Uk.Com","Supplies and Services related expenditure","11/01/2021","30","Director of Regeneration"
"Medical","Lab/Med/Hospital Equipment","Wightman & Parrish","Premises related expenditure","11/01/2021","237.19","Director of Adult Services"
"Medical","Lab/Med/Hospital Equipment","Wightman & Parrish","Supplies and Services related expenditure","11/01/2021","29.99","Director of Adult Services"
"Other Supplies","Discount Stores","Argos Ltd","Supplies and Services related expenditure","11/01/2021","36.63","Director of Children's Services and Education"
"Other Supplies","Discount Stores","Argos Ltd","Supplies and Services related expenditure","11/01/2021","349.98","Director of Children's Services and Education"
"Utility","Utilities/Elec/Gas/H2O/Sani","Cng Energy Connections","Premises related expenditure","11/01/2021","332.4","Director of Portsmouth International Port"
"Facilities/Repair Supplies","Home Supply Warehouse Stores","B & Q 1260","Premises related expenditure","11/01/2021","22.95","Director of Children's Services and Education"
"Other Supplies","Misc Speciality Retail","Amznmktplace","Premises related expenditure","11/01/2021","9.6","Director of Children's Services and Education"
"Other Supplies","Misc Speciality Retail","Amznmktplace","Premises related expenditure","11/01/2021","17.58","Director of Children's Services and Education"
"Other Supplies","Misc Speciality Retail","Amznmktplace","Premises related expenditure","11/01/2021","0.06","Director of Children's Services and Education"
"Facilities/Repair Supplies","Home Supply Warehouse Stores","B & Q 1238","Supplies and Services related expenditure","11/01/2021","11.66","Director of Regeneration"
"Facilities/Repair Supplies","Home Supply Warehouse Stores","B & Q 1238","Supplies and Services related expenditure","11/01/2021","14.17","Director of Regeneration"
"Facilities/Repair Supplies","Home Supply Warehouse Stores","B & Q 1260","Premises related expenditure","11/01/2021","41.63","Director of Children's Services and Education"
"Business Expenses/Services","Postage Stamps","Post Office Counter","Supplies and Services related expenditure","11/01/2021","8.4","Director of Culture, Leisure & Regulatory Services"
"Eating And Drinking Places","Fast Food Restaurants","Starbucks Coffee","Agency and Third Party Payments related expenditure","11/01/2021","7.3","Director of Children's Services and Education"
"Type of Retail Store","Grocery Stores/Supermarkets","Wm Morrisons Store","Supplies and Services related expenditure","11/01/2021","2.58","Director of Children's Services and Education"
"Type of Retail Store","Grocery Stores/Supermarkets","Wm Morrisons Store","Supplies and Services related expenditure","11/01/2021","4.65","Director of Children's Services and Education"
"Business To Business Facility/","Electrical Parts/Equipment","Premier Farnell","Supplies and Services related expenditure","11/01/2021","205.66","Director of Regeneration"
"Business To Business Facility/","Industrial Supplies - Def","Arco Limited (Ahpp)","Supplies and Services related expenditure","11/01/2021","34.4","Director of Housing, Neighbourhood and Building Services"
"Business To Business Facility/","Electrical Parts/Equipment","Rs Components","Supplies and Services related expenditure","11/01/2021","277","Director of Regeneration"
"Other Supplies","Misc Speciality Retail","Amznmktplace","Supplies and Services related expenditure","12/01/2021","74.16","Director of Housing, Neighbourhood and Building Services"
"Utility","Phone Serv/Equip Utility","Www.Broadbandbuyer.Co.Uk","Supplies and Services related expenditure","12/01/2021","325.29","Director of Housing, Neighbourhood and Building Services"
"Business To Business Eqpt/Furn","Stationery/Office Supplies","Www.Banneruk.Com","Supplies and Services related expenditure","12/01/2021","17.26","Director of Housing, Neighbourhood and Building Services"
"Business To Business Eqpt/Furn","Stationery/Office Supplies","Www.Banneruk.Com","Supplies and Services related expenditure","12/01/2021","31.8","Director of Housing, Neighbourhood and Building Services"
"Government Service","Govt Serv - Default","Hampshire County Counc","Supplies and Services related expenditure","12/01/2021","6.02","Director of Children's Services and Education"
"Government Service","Govt Serv - Default","Hampshire County Counc","Supplies and Services related expenditure","12/01/2021","18.65","Director of Children's Services and Education"
"Government Service","Govt Serv - Default","Hampshire County Counc","Supplies and Services related expenditure","12/01/2021","18.65","Director of Children's Services and Education"
"Other Supplies","Misc Speciality Retail","Amznmktplace","Supplies and Services related expenditure","12/01/2021","19.48","Director of Corporate Services"
"Other Supplies","Misc Speciality Retail","Amznmktplace","Supplies and Services related expenditure","12/01/2021","21.57","Director of Corporate Services"
"Other Supplies","Misc Speciality Retail","The Sign Shop","Supplies and Services related expenditure","12/01/2021","65","Director of Culture, Leisure & Regulatory Services"
"Other Supplies","Misc Speciality Retail","Amznbusiness","Supplies and Services related expenditure","12/01/2021","6.66","Director of Children's Services and Education"
"Facilities Maintenance","Specialty Cleaning/Polishing","Www.Onestopcleaningsho","Supplies and Services related expenditure","12/01/2021","31.6","Director of Housing, Neighbourhood and Building Services"
"Type of Retail Store","Grocery Stores/Supermarkets","Asda Groceries Online","Supplies and Services related expenditure","12/01/2021","-2.74","Director of Children's Services and Education"
"Type of Retail Store","Grocery Stores/Supermarkets","Asda Groceries Online","Supplies and Services related expenditure","12/01/2021","16.93","Director of Children's Services and Education"
"Type of Retail Store","Grocery Stores/Supermarkets","Asda Groceries Online","Supplies and Services related expenditure","12/01/2021","64.8","Director of Children's Services and Education"
"Caterers Food","Caterers","Angel Springs Ltd","Supplies and Services related expenditure","12/01/2021","182.35","Director of Portsmouth International Port"
"Caterers Food","Caterers","Angel Springs Ltd","Supplies and Services related expenditure","12/01/2021","83.7","Director of Portsmouth International Port"
"Caterers Food","Caterers","Angel Springs Ltd","Supplies and Services related expenditure","12/01/2021","56.88","Director of Portsmouth International Port"
"Caterers Food","Caterers","Angel Springs Ltd","Supplies and Services related expenditure","12/01/2021","186.87","Director of Portsmouth International Port"
"Caterers Food","Caterers","Angel Springs Ltd","Supplies and Services related expenditure","12/01/2021","83.7","Director of Portsmouth International Port"
"Caterers Food","Caterers","Angel Springs Ltd","Supplies and Services related expenditure","12/01/2021","56.88","Director of Portsmouth International Port"
"Type of Retail Store","Grocery Stores/Supermarkets","Liquidline Vt","Supplies and Services related expenditure","12/01/2021","181.88","Director of Portsmouth International Port"
"Type of Retail Store","Grocery Stores/Supermarkets","Liquidline Vt","Supplies and Services related expenditure","12/01/2021","166.03","Director of Portsmouth International Port"
"Transportation Conveyor","Transportation Svcs - Default","Aqua Cars","Transport related expenditure","12/01/2021","360.2","Director of Portsmouth International Port"
"Miscellaneous","Continuity/Subscription Mercht","Amazon Prime","Supplies and Services related expenditure","12/01/2021","6.66","Director of Children's Services and Education"
"Other Supplies","Discount Stores","Argos Ltd","Supplies and Services related expenditure","12/01/2021","169.12","Director of Children's Services and Education"
"Personal Service Provider","Computer Program/Sys Design","Squarespace Inc.","Supplies and Services related expenditure","12/01/2021","15.26","Director of Children's Services and Education"
"Government Service","Govt Serv - Default","Www.Ico.Org.Uk","Supplies and Services related expenditure","12/01/2021","60","Director of Children's Services and Education"
"Business Expenses/Services","Books/Periodicals/Newspapers","Www.Wheelersbooks.Co.N","Supplies and Services related expenditure","12/01/2021","266.08","Director of Culture, Leisure & Regulatory Services"
"Type of Retail Store","Misc Food Stores - Default","Eastney Convenience St","Supplies and Services related expenditure","12/01/2021","7.44","Director of Adult Services"
"Utility","Phone Serv/Equip Utility","Mip*tesco Mobile Topup","Supplies and Services related expenditure","12/01/2021","25","Director of Children's Services and Education"
"Business To Business Eqpt/Furn","Stationery/Office Supplies","Www.Banneruk.Com","Supplies and Services related expenditure","12/01/2021","70.56","Director of Adult Services"
"Transportation Conveyor","Parking Lots, Meters, Garages","Queen Alexandra Hopita","Transport related expenditure","12/01/2021","1.67","Director of Children's Services and Education"
"Other Supplies","Misc Speciality Retail","Amznbusiness","Supplies and Services related expenditure","12/01/2021","17.48","Director of Portsmouth International Port"
"Utility","Phone Serv/Equip Utility","Zoom.Us 888-799-9666","Supplies and Services related expenditure","12/01/2021","11.99","Director of Regeneration"
"Other Supplies","Misc Speciality Retail","Amznmktplace","Supplies and Services related expenditure","12/01/2021","29.32","Director of Children's Services and Education"
"Other Supplies","Misc Speciality Retail","Amznmktplace","Supplies and Services related expenditure","12/01/2021","61.67","Director of Children's Services and Education"
"Business To Business Facility/","Industrial Supplies - Def","Arco Limited (Ahpp)","Supplies and Services related expenditure","12/01/2021","17.28","Director of Portsmouth International Port"
"Other Supplies","Misc Speciality Retail","Amznmktplace","Supplies and Services related expenditure","12/01/2021","18.84","Director of Portsmouth International Port"
"Utility","Utilities/Elec/Gas/H2O/Sani","Slicker Recycling","Premises related expenditure","12/01/2021","200","Director of Portsmouth International Port"
"Facilities/Repair Supplies","Home Supply Warehouse Stores","B & Q 1238","Premises related expenditure","12/01/2021","12.36","Director of Children's Services and Education"
"Business To Business Facility/","Industrial Supplies - Def","Arco Limited (Sap)","Supplies and Services related expenditure","12/01/2021","25.2","Director of Culture, Leisure & Regulatory Services"
"Type of Retail Store","Grocery Stores/Supermarkets","Tesco Stores 6679","Supplies and Services related expenditure","12/01/2021","16.67","Director of Children's Services and Education"
"Type of Retail Store","Grocery Stores/Supermarkets","Farmfoods 750","Supplies and Services related expenditure","12/01/2021","27.23","Director of Children's Services and Education"
"Facilities Maintenance","Clean/Maint/Janitoral Serv","Initial Washroom","Premises related expenditure","12/01/2021","79.88","Director of Regeneration"
"Other Supplies","Misc Speciality Retail","Amznbusiness","Supplies and Services related expenditure","12/01/2021","15.62","Director of Adult Services"
"Business Expenses/Services","Postage Stamps","Royal Mail Charges","Supplies and Services related expenditure","12/01/2021","1.5","Director of Housing, Neighbourhood and Building Services"
"Facilities/Repair Supplies","Lumber/Build. Supply Stores","Screwfix Direct","Supplies and Services related expenditure","12/01/2021","17.98","Director of Housing, Neighbourhood and Building Services"
"Other Supplies","Misc Speciality Retail","Amznmktplace","Supplies and Services related expenditure","12/01/2021","17.26","Director of Children's Services and Education"
"Business Expenses/Services","Postage Stamps","Post Office Counter","Supplies and Services related expenditure","12/01/2021","3.23","Director of Housing, Neighbourhood and Building Services"
"Business To Business Services","Misc Publishing & Printing","Buffer Publish Pro Mo","Supplies and Services related expenditure","12/01/2021","9.53","Chief Exec"
"Auto/Vehicle Expenses","Auto Body Repair Shops","Www.","Supplies and Services related expenditure","12/01/2021","286.8","Director of Regeneration"
"Business To Business Eqpt/Furn","Computer Software Stores","Websites And Blogs Ltd","Supplies and Services related expenditure","12/01/2021","49.96","Director of Children's Services and Education"
"Facilities/Repair Supplies","Home Supply Warehouse Stores","B & Q 1260","Premises related expenditure","12/01/2021","24.75","Director of Culture, Leisure & Regulatory Services"
"Type of Retail Store","Grocery Stores/Supermarkets","Tesco Stores 4579","Supplies and Services related expenditure","12/01/2021","36.21","Director of Adult Services"
"Other Supplies","Misc Speciality Retail","Iz *sc Internation","Premises related expenditure","12/01/2021","90","Director of Adult Services"
"Other Supplies","Misc Speciality Retail","Amznmktplace","Supplies and Services related expenditure","12/01/2021","22.44","Director of Children's Services and Education"
"Auto/Vehicle Expenses","Auto Body Repair Shops","Swinburne","Transport related expenditure","12/01/2021","59.55","Director of Children's Services and Education"
"Auto/Vehicle Expenses","Auto Body Repair Shops","Swinburne","Transport related expenditure","12/01/2021","123.83","Director of Children's Services and Education"
"Facilities/Repair Supplies","Lawn/Garden Supply/Nursery","M & S Enterprises","Supplies and Services related expenditure","12/01/2021","31","Director of Housing, Neighbourhood and Building Services"
"Transportation Conveyor","Passenger Railways","Sw Railway App","Supplies and Services related expenditure","12/01/2021","36.7","Director of Children's Services and Education"
"Type of Retail Store","Grocery Stores/Supermarkets","Aldi Stores","Supplies and Services related expenditure","12/01/2021","1.14","Director of Children's Services and Education"
"Business To Business Facility/","Industrial Supplies - Def","Www.Arco.Co.Uk","Supplies and Services related expenditure","12/01/2021","55.37","Director of Housing, Neighbourhood and Building Services"
"Miscellaneous","Charitable/Soc Service Orgs","Nas Uk","Supplies and Services related expenditure","12/01/2021","290","Director of Children's Services and Education"
"Type of Retail Store","Sporting Goods Stores","Start Fitness","Supplies and Services related expenditure","12/01/2021","7.5","Director of Adult Services"
"Type of Retail Store","Sporting Goods Stores","Start Fitness","Supplies and Services related expenditure","12/01/2021","2.46","Director of Adult Services"
"Government Service","Schools - Default","Www.Qualsafe.Com","Employees related expenditure","12/01/2021","14.25","Director of Corporate Services"
"Government Service","Tax Payments","Dvla Vehicle Tax","Transport related expenditure","12/01/2021","167.5","Director of Children's Services and Education"
"Government Service","Schools - Default","Sp * Linguascope","Supplies and Services related expenditure","12/01/2021","300","Director of Children's Services and Education"
"Facilities/Repair Supplies","Home Supply Warehouse Stores","B & Q 1260","Supplies and Services related expenditure","12/01/2021","12.67","Director of Adult Services"
"Facilities/Repair Supplies","Lumber/Build. Supply Stores","C.E.F. (Portsmouth)","Supplies and Services related expenditure","12/01/2021","41.34","Director of Adult Services"
"Facilities/Repair Supplies","Bicycle Shops/Sales/Service","Halfords 0852","Premises related expenditure","12/01/2021","3","Director of Culture, Leisure & Regulatory Services"
"Other Supplies","Misc Speciality Retail","Amznmktplace","Supplies and Services related expenditure","12/01/2021","37.48","Director of Children's Services and Education"
"Personal Service Provider","Legal Services Attorneys","Biscoes","Supplies and Services related expenditure","12/01/2021","150","Director of Children's Services and Education"
"Type of Retail Store","Grocery Stores/Supermarkets","Tesco Stores 4579","Supplies and Services related expenditure","12/01/2021","43.54","Director of Children's Services and Education"
"Type of Retail Store","Grocery Stores/Supermarkets","Tesco Stores 4579","Supplies and Services related expenditure","12/01/2021","0.83","Director of Children's Services and Education"
"Other Supplies","Misc Speciality Retail","Amznmktplace","Premises related expenditure","12/01/2021","24.98","Director of Adult Services"
"Other Supplies","Misc Speciality Retail","Amznmktplace","Supplies and Services related expenditure","12/01/2021","21.32","Director of Adult Services"
"Business Expenses/Services","Postage Stamps","Post Office Counter","Supplies and Services related expenditure","12/01/2021","3.84","Director of Children's Services and Education"
"Other Supplies","Misc Speciality Retail","Amznmktplace","Supplies and Services related expenditure","12/01/2021","66.66","Director of Regeneration"
"Type of Retail Store","Grocery Stores/Supermarkets","Tesco Stores 4579","Premises related expenditure","12/01/2021","8.75","Director of Children's Services and Education"
"Type of Retail Store","Grocery Stores/Supermarkets","Tesco Stores 4579","Supplies and Services related expenditure","12/01/2021","7.88","Director of Children's Services and Education"
"Medical","Lab/Med/Hospital Equipment","Wightman & Parrish Ltd","Premises related expenditure","12/01/2021","73.8","Director of Housing, Neighbourhood and Building Services"
"Government Service","Govt Serv - Default","Hampshire County Counc","Supplies and Services related expenditure","12/01/2021","47.64","Director of Children's Services and Education"
"Other Supplies","Misc Speciality Retail","Amznmktplace","Supplies and Services related expenditure","12/01/2021","395.02","Director of Corporate Services"
"Other Supplies","Misc Speciality Retail","Amznmktplace","Supplies and Services related expenditure","12/01/2021","395.03","Director of Corporate Services"
"Type of Retail Store","Grocery Stores/Supermarkets","Tesco Stores 4579","Supplies and Services related expenditure","12/01/2021","4.58","Director of Children's Services and Education"
"Type of Retail Store","Grocery Stores/Supermarkets","Tesco Stores 4579","Supplies and Services related expenditure","12/01/2021","12.71","Director of Children's Services and Education"
"Eating And Drinking Places","Fast Food Restaurants","McDonalds","Agency and Third Party Payments related expenditure","12/01/2021","17.13","Director of Children's Services and Education"
"Eating And Drinking Places","Fast Food Restaurants","McDonalds","Agency and Third Party Payments related expenditure","12/01/2021","2.27","Director of Children's Services and Education"
"Other Supplies","Catalog Merchant","Www.Uk.Insight.Com","Supplies and Services related expenditure","08/01/2021","1848.56","Director of Children's Services and Education"
"Hotels And Motels","Premier Travel Inns","Premier Inn44010625","Agency and Third Party Payments related expenditure","12/01/2021","425.71","Director of Housing, Neighbourhood and Building Services"
"Automobile Services & Supplies","Service Stations","All Saints Service Statio","Premises related expenditure","12/01/2021","93.33","Director of Children's Services and Education"
"Other Supplies","Misc Speciality Retail","Amznbusiness","Supplies and Services related expenditure","12/01/2021","5","Director of Children's Services and Education"
"Personal Service Provider","Mgmt/Consult/Public Rel Ser","Tvlicensing.Co.Uk","Supplies and Services related expenditure","12/01/2021","157.5","Director of Culture, Leisure & Regulatory Services"
"Business To Business Eqpt/Furn","Stationery/Office Supplies","Www.Banneruk.Com","Supplies and Services related expenditure","13/01/2021","20.64","Director of Housing, Neighbourhood and Building Services"
"Other Supplies","Misc Speciality Retail","Amznmktplace","Agency and Third Party Payments related expenditure","13/01/2021","32.47","Director of Housing, Neighbourhood and Building Services"
"Business To Business Eqpt/Furn","Stationery/Office Supplies","Www.Banneruk.Com","Supplies and Services related expenditure","13/01/2021","78.18","Director of Housing, Neighbourhood and Building Services"
"Equipment And Furniture","Household Appliance Stores","Tlc Southern","Supplies and Services related expenditure","13/01/2021","17.26","Director of Housing, Neighbourhood and Building Services"
"Facilities/Repair Supplies","Hardware Stores","Toolstation Uk","Supplies and Services related expenditure","13/01/2021","10.71","Director of Housing, Neighbourhood and Building Services"
"Facilities/Repair Supplies","Hardware Stores","Toolstation Uk","Supplies and Services related expenditure","13/01/2021","10.75","Director of Housing, Neighbourhood and Building Services"
"Miscellaneous","Charitable/Soc Service Orgs","Www.Cpag.Org.Uk","Supplies and Services related expenditure","13/01/2021","41.9","Director of Housing, Neighbourhood and Building Services"
"Facilities/Repair Supplies","Misc Home Furnishing","Tillys Furniture Shop L","Agency and Third Party Payments related expenditure","13/01/2021","190.48","Director of Housing, Neighbourhood and Building Services"
"Business To Business Facility/","Industrial Supplies - Def","Arco Limited (Sap)","Supplies and Services related expenditure","13/01/2021","64.86","Director of Housing, Neighbourhood and Building Services"
"Other Supplies","Misc Speciality Retail","Amznmktplace","Supplies and Services related expenditure","13/01/2021","32.47","Director of Children's Services and Education"
"Medical","Lab/Med/Hospital Equipment","Wightman & Parrish","Premises related expenditure","13/01/2021","122.38","Director of Housing, Neighbourhood and Building Services"
"Business To Business Eqpt/Furn","Computers/Peripherals/Software","Hotjar","Supplies and Services related expenditure","13/01/2021","26.7","Director of Corporate Services"
"Facilities/Repair Supplies","Lumber/Build. Supply Stores","Screwfix Direct","Premises related expenditure","13/01/2021","55.78","Director of Children's Services and Education"
"Type of Retail Store","Grocery Stores/Supermarkets","Iceland","Supplies and Services related expenditure","13/01/2021","9.08","Director of Children's Services and Education"
"Type of Retail Store","Grocery Stores/Supermarkets","Asda Stores","Supplies and Services related expenditure","13/01/2021","14.12","Director of Children's Services and Education"
"Other Supplies","Misc Speciality Retail","Amznmktplace","Supplies and Services related expenditure","13/01/2021","61.63","Director of Children's Services and Education"
"Business To Business Facility/","Chemicals/Allied Prods - Def","Ricoeurope","Supplies and Services related expenditure","13/01/2021","34.21","Director of Housing, Neighbourhood and Building Services"
"Medical","Lab/Med/Hospital Equipment","Wightman & Parrish","Premises related expenditure","13/01/2021","57.96","Director of Housing, Neighbourhood and Building Services"
"Medical","Lab/Med/Hospital Equipment","Wightman & Parrish","Premises related expenditure","13/01/2021","64.8","Director of Housing, Neighbourhood and Building Services"
"Eating And Drinking Places","Eating Places/Restaurants","Greggs Plc","Supplies and Services related expenditure","13/01/2021","4.95","Director of Children's Services and Education"
"Transportation Conveyor","Passenger Railways","Trainline","Transport related expenditure","13/01/2021","25.02","Director of Children's Services and Education"
"Caterers Food","Caterers","Compass Services UK Ltd","Supplies and Services related expenditure","13/01/2021","319.52","Director of Culture, Leisure & Regulatory Services"
"Other Supplies","Department Stores","Southern Co-Op 0009","Supplies and Services related expenditure","13/01/2021","2.79","Director of Children's Services and Education"
"Other Supplies","Misc Speciality Retail","Amznmktplace","Supplies and Services related expenditure","13/01/2021","7.08","Director of Children's Services and Education"
"Other Supplies","Misc Speciality Retail","Amznmktplace","Premises related expenditure","13/01/2021","3.33","Director of Children's Services and Education"
"Other Supplies","Misc Speciality Retail","Amznmktplace","Premises related expenditure","13/01/2021","31.73","Director of Children's Services and Education"
"Type of Retail Store","Grocery Stores/Supermarkets","Tesco Stores 4611","Supplies and Services related expenditure","13/01/2021","20","Director of Children's Services and Education"
"Type of Retail Store","Grocery Stores/Supermarkets","Tesco Stores 4611","Supplies and Services related expenditure","13/01/2021","50","Director of Children's Services and Education"
"Type of Retail Store","Grocery Stores/Supermarkets","Tesco Stores 4611","Supplies and Services related expenditure","13/01/2021","50","Director of Children's Services and Education"
"Other Supplies","Misc Gen Merchandise - Def","Wilko Retail Limited","Supplies and Services related expenditure","13/01/2021","6.5","Director of Housing, Neighbourhood and Building Services"
"Other Supplies","Misc Speciality Retail","Amznbusiness","Supplies and Services related expenditure","13/01/2021","19.91","Director of Housing, Neighbourhood and Building Services"
"Utility","Phone Serv/Equip Utility","Lycamobile","Supplies and Services related expenditure","13/01/2021","15.83","Director of Children's Services and Education"
"Government Service","Tax Payments","Dvla Vehicle Tax","Supplies and Services related expenditure","13/01/2021","152.5","Director of Adult Services"
"Type of Retail Store","Grocery Stores/Supermarkets","Farmfoods 750","Supplies and Services related expenditure","13/01/2021","16.13","Director of Children's Services and Education"
"Business To Business Facility/","Electrical Parts/Equipment","Edmundson Electrical","Premises related expenditure","13/01/2021","55.63","Director of Portsmouth International Port"
"Business To Business Facility/","Electrical Parts/Equipment","Edmundson Electrical","Premises related expenditure","13/01/2021","97.5","Director of Portsmouth International Port"
"Business To Business Facility/","Electrical Parts/Equipment","Edmundson Electrical","Premises related expenditure","13/01/2021","108.24","Director of Portsmouth International Port"
"Freight/Courier/Warehouse Svcs","Motor Freight Carriers","Myhermes.Co.Uk","Supplies and Services related expenditure","13/01/2021","22.3","Director of Children's Services and Education"
"Other Supplies","Misc Speciality Retail","Amznmktplace Amazon.Co.Uk","Supplies and Services related expenditure","13/01/2021","45.78","Director of Adult Services"
"Business To Business Facility/","Industrial Supplies - Def","Arco Limited (Ahpp)","Supplies and Services related expenditure","13/01/2021","60.9","Director of Portsmouth International Port"
"Type of Retail Store","Electronics Sales","Currys Online","Supplies and Services related expenditure","13/01/2021","211.67","Director of Children's Services and Education"
"Business Services","Business Services - Default","Voiceovers Ltd","Supplies and Services related expenditure","13/01/2021","510","Director of Corporate Services"
"Business To Business Eqpt/Furn","Stationery/Office Supplies","Www.Banneruk.Com","Supplies and Services related expenditure","13/01/2021","33.2","Director of Adult Services"
"Business To Business Facility/","Hardware Equipment/Supplies","Www.Parrs.Co.Uk","Supplies and Services related expenditure","13/01/2021","99","Director of Housing, Neighbourhood and Building Services"
"Type of Retail Store","Grocery Stores/Supermarkets","M A Food","Supplies and Services related expenditure","13/01/2021","16.97","Director of Children's Services and Education"
"Government Service","Govt Serv - Default","Portsmouth City Co","Transport related expenditure","13/01/2021","63.33","Director of Children's Services and Education"
"Government Service","Govt Serv - Default","Portsmouth City Co","Transport related expenditure","13/01/2021","63.33","Director of Children's Services and Education"
"Other Supplies","Misc Speciality Retail","Amznmktplace","Supplies and Services related expenditure","13/01/2021","14.87","Director of Children's Services and Education"
"Business To Business Eqpt/Furn","Stationery/Office Supplies","Www.Banneruk.Com","Supplies and Services related expenditure","13/01/2021","45.6","Director of Culture, Leisure & Regulatory Services"
"Business To Business Eqpt/Furn","Stationery/Office Supplies","Www.Banneruk.Com","Supplies and Services related expenditure","13/01/2021","3.76","Director of Housing, Neighbourhood and Building Services"
"Business To Business Eqpt/Furn","Stationery/Office Supplies","Www.Banneruk.Com","Supplies and Services related expenditure","13/01/2021","54.16","Director of Housing, Neighbourhood and Building Services"
"Automobile Rental","Automobile Rental Agency","Southern Motor Contrac","Transport related expenditure","13/01/2021","7010.45","Director of Regeneration"
"Utility","Phone Serv/Equip Utility","Zoom.Us 888-799-9666","Supplies and Services related expenditure","13/01/2021","11.99","Director of Public Health"
"Business To Business Eqpt/Furn","Commercial Equipment - Default","Comax UK Limited","Premises related expenditure","13/01/2021","65.7","Director of Children's Services and Education"
"Other Supplies","Misc Gen Merchandise - Def","B&m Retail Ltd","Premises related expenditure","13/01/2021","12.5","Director of Culture, Leisure & Regulatory Services"
"Facilities/Repair Supplies","Home Supply Warehouse Stores","B & Q 1260","Supplies and Services related expenditure","13/01/2021","34.33","Director of Housing, Neighbourhood and Building Services"
"Other Supplies","Misc Speciality Retail","Amznmktplace","Premises related expenditure","13/01/2021","10.82","Director of Adult Services"
"Business To Business Facility/","Industrial Supplies - Def","Arco Limited (Sap)","Supplies and Services related expenditure","13/01/2021","75.48","Director of Housing, Neighbourhood and Building Services"
"Type of Retail Store","Grocery Stores/Supermarkets","Tesco Store 3055","Supplies and Services related expenditure","13/01/2021","8.38","Director of Housing, Neighbourhood and Building Services"
"Business Expenses/Services","Postage Stamps","Post Office Counter","Supplies and Services related expenditure","13/01/2021","33","Director of Children's Services and Education"
"Medical","Lab/Med/Hospital Equipment","Wightman & Parrish","Premises related expenditure","13/01/2021","178.81","Director of Housing, Neighbourhood and Building Services"
"Government Service","Govt Serv - Default","Portsmouth City Co","Transport related expenditure","13/01/2021","63.33","Director of Children's Services and Education"
"Business To Business Eqpt/Furn","Stationery/Office Supplies","Www.Banneruk.Com","Supplies and Services related expenditure","13/01/2021","22.75","Director of Housing, Neighbourhood and Building Services"
"Business To Business Eqpt/Furn","Stationery/Office Supplies","Www.Banneruk.Com","Supplies and Services related expenditure","13/01/2021","151.72","Director of Housing, Neighbourhood and Building Services"
"Other Supplies","Misc Speciality Retail","Amznmktplace Amazon.Co.Uk","Supplies and Services related expenditure","13/01/2021","41.22","Director of Children's Services and Education"
"Other Supplies","Misc Speciality Retail","Amznmktplace","Supplies and Services related expenditure","13/01/2021","3.32","Director of Adult Services"
"Other Supplies","Misc Speciality Retail","Amznmktplace","Supplies and Services related expenditure","13/01/2021","1.87","Director of Adult Services"
"Other Supplies","Misc Speciality Retail","Amznmktplace","Supplies and Services related expenditure","13/01/2021","6","Director of Adult Services"
"Other Supplies","Misc Speciality Retail","Amznmktplace","Supplies and Services related expenditure","13/01/2021","1.87","Director of Adult Services"
"Business Services","Business Services - Default","Zebra Waste","Premises related expenditure","13/01/2021","240","Director of Adult Services"
"Business To Business Eqpt/Furn","Computer Software Stores","Sp * Love Southsea Ltd","Supplies and Services related expenditure","13/01/2021","150","Director of Children's Services and Education"
"Miscellaneous","Continuity/Subscription Mercht","Vimeo Plus Monthly","Supplies and Services related expenditure","13/01/2021","10","Director of Portsmouth International Port"
"Type of Retail Store","Sporting Goods Stores","Www.Millets.Co.Uk","Supplies and Services related expenditure","13/01/2021","62.95","Director of Housing, Neighbourhood and Building Services"
"Type of Retail Store","Hobby/Toy/Game Stores","This Is It Stores Limi","Supplies and Services related expenditure","13/01/2021","37.46","Director of Children's Services and Education"
"Miscellaneous","Member Organizations - Def","Www.Data.Org.Uk","Supplies and Services related expenditure","13/01/2021","85","Director of Children's Services and Education"
"Type of Retail Store","Grocery Stores/Supermarkets","Tesco Stores 4579","Supplies and Services related expenditure","13/01/2021","10.2","Director of Housing, Neighbourhood and Building Services"
"Business To Business Facility/","Hardware Equipment/Supplies","Croma Locksmiths & Sec","Supplies and Services related expenditure","13/01/2021","24.62","Director of Housing, Neighbourhood and Building Services"
"Equipment And Furniture","Phone Serv/Equip Non-Util","Ligo Electronics","Supplies and Services related expenditure","13/01/2021","129.16","Director of Adult Services"
"Government Service","Govt Serv - Default","Pcc Internet Payment","Supplies and Services related expenditure","13/01/2021","11","Director of Children's Services and Education"
"Business To Business Facility/","Industrial Supplies - Def","Arco Limited (Sap)","Supplies and Services related expenditure","13/01/2021","47.45","Director of Housing, Neighbourhood and Building Services"
"Business To Business Facility/","Industrial Supplies - Def","Arco Limited (Sap)","Supplies and Services related expenditure","13/01/2021","93.6","Director of Housing, Neighbourhood and Building Services"
"Medical","Lab/Med/Hospital Equipment","Wightman & Parrish Ltd","Premises related expenditure","13/01/2021","98.47","Director of Housing, Neighbourhood and Building Services"
"Facilities/Repair Supplies","Automotive Parts Stores","Westleigh Motor Factor","Transport related expenditure","13/01/2021","140","Director of Housing, Neighbourhood and Building Services"
"Business To Business Facility/","Industrial Supplies - Def","Arco Ltd","Supplies and Services related expenditure","13/01/2021","74.7","Director of Regeneration"
"Business To Business Facility/","Industrial Supplies - Def","Arco Ltd","Supplies and Services related expenditure","13/01/2021","243.87","Director of Regeneration"
"Business Expenses/Services","Courier Services","Parcelforce Wl","Supplies and Services related expenditure","13/01/2021","13.85","Director of Culture, Leisure & Regulatory Services"
"Eating And Drinking Places","Fast Food Restaurants","Starbucks Coffee","Agency and Third Party Payments related expenditure","13/01/2021","4.2","Director of Children's Services and Education"
"Government Service","Govt Serv - Default","Hampshire County Counc","Supplies and Services related expenditure","13/01/2021","52.93","Director of Children's Services and Education"
"Government Service","Colleges/Univ/Jc/Profession","Gls Educational Su","Supplies and Services related expenditure","13/01/2021","67.16","Director of Children's Services and Education"
"Other Supplies","Misc Speciality Retail","Amznmktplace","Supplies and Services related expenditure","13/01/2021","7.07","Director of Children's Services and Education"
"Business Services","Business Services - Default","Cisco Systems","Supplies and Services related expenditure","13/01/2021","74.67","Director of Corporate Services"
"Business Services","Business Services - Default","Cisco Systems","Supplies and Services related expenditure","13/01/2021","74.66","Director of Culture, Leisure & Regulatory Services"
"Other Supplies","Misc Speciality Retail","Amznmktplace","Supplies and Services related expenditure","13/01/2021","56.61","Director of Housing, Neighbourhood and Building Services"
"Business To Business Facility/","Industrial Supplies - Def","Arco Limited (Ahpp)","Supplies and Services related expenditure","08/01/2021","17.94","Director of Housing, Neighbourhood and Building Services"
"Business To Business Facility/","Industrial Supplies - Def","Arco Limited (Ahpp)","Supplies and Services related expenditure","11/01/2021","17.94","Director of Housing, Neighbourhood and Building Services"
"Type of Retail Store","Sporting Goods Stores","Baltic Safety Prod","Supplies and Services related expenditure","12/01/2021","124.14","Director of Portsmouth International Port"
"Business To Business Facility/","Industrial Supplies - Def","Callancote Ltd","Supplies and Services related expenditure","12/01/2021","56.09","Director of Culture, Leisure & Regulatory Services"
"Business To Business Facility/","Industrial Supplies - Def","Arco Limited (Ahpp)","Supplies and Services related expenditure","13/01/2021","109.68","Director of Housing, Neighbourhood and Building Services"
"Business To Business Facility/","Electrical Parts/Equipment","Premier Farnell","Premises related expenditure","13/01/2021","34.45","Director of Portsmouth International Port"
"Business To Business Facility/","Industrial Supplies - Def","Arco Limited (Ahpp)","Supplies and Services related expenditure","13/01/2021","10.65","Director of Portsmouth International Port"
"Business To Business Facility/","Industrial Supplies - Def","Arco Limited (Ahpp)","Supplies and Services related expenditure","13/01/2021","15.02","Director of Portsmouth International Port"
"Business To Business Facility/","Industrial Supplies - Def","Arco Limited (Ahpp)","Supplies and Services related expenditure","13/01/2021","21.3","Director of Portsmouth International Port"
"Business To Business Facility/","Industrial Supplies - Def","Arco Limited (Ahpp)","Supplies and Services related expenditure","13/01/2021","55.28","Director of Portsmouth International Port"
"Other Supplies","Discount Stores","Argos Ltd","Supplies and Services related expenditure","13/01/2021","85.4","Director of Adult Services"
"Business To Business Eqpt/Furn","Stationery/Office Supplies","Www.Banneruk.Com","Supplies and Services related expenditure","14/01/2021","237.52","Director of Housing, Neighbourhood and Building Services"
"Freight/Courier/Warehouse Svcs","Public Warehousing","Big Yellow - Portsmout","Premises related expenditure","14/01/2021","-64.3","Director of Housing, Neighbourhood and Building Services"
"Freight/Courier/Warehouse Svcs","Public Warehousing","Big Yellow - Portsmout","Premises related expenditure","14/01/2021","-39.85","Director of Housing, Neighbourhood and Building Services"
"Auto/Vehicle Expenses","Automotive Tire Stores","Portsmouth - Protyre","Supplies and Services related expenditure","14/01/2021","45.63","Director of Housing, Neighbourhood and Building Services"
"Facilities/Repair Supplies","Home Supply Warehouse Stores","B & Q 1260","Supplies and Services related expenditure","14/01/2021","133.87","Director of Regeneration"
"Other Supplies","Misc Speciality Retail","Amznmktplace","Supplies and Services related expenditure","14/01/2021","49.98","Director of Children's Services and Education"
"Other Supplies","Misc Speciality Retail","Amznmktplace","Supplies and Services related expenditure","14/01/2021","183.24","Director of Children's Services and Education"
"Other Supplies","Misc Speciality Retail","Amznmktplace","Supplies and Services related expenditure","14/01/2021","84.97","Director of Adult Services"
"Other Supplies","Discount Stores","Argos Ltd","Supplies and Services related expenditure","14/01/2021","85","Director of Housing, Neighbourhood and Building Services"
"Other Supplies","Discount Stores","Argos Ltd","Supplies and Services related expenditure","14/01/2021","-85","Director of Housing, Neighbourhood and Building Services"
"Utility","Computer Network/Info Svcs","Siteground Hosting","Supplies and Services related expenditure","14/01/2021","11.95","Director of Corporate Services"
"Facilities Maintenance","Clean/Maint/Janitoral Serv","Sp * Candor Services","Supplies and Services related expenditure","14/01/2021","17.73","Director of Housing, Neighbourhood and Building Services"
"Business Services","Advertising Services","Facebk Q3p5byn8z2","Supplies and Services related expenditure","14/01/2021","300","Director of Corporate Services"
"Type of Retail Store","Grocery Stores/Supermarkets","Tesco Stores 4611","Supplies and Services related expenditure","14/01/2021","20","Director of Children's Services and Education"
"Business To Business Eqpt/Furn","Commercial Equipment - Default","Lockertek Ltd","Supplies and Services related expenditure","14/01/2021","148.68","Director of Children's Services and Education"
"Type of Retail Store","Grocery Stores/Supermarkets","Tesco Stores 2322","Supplies and Services related expenditure","14/01/2021","30","Director of Children's Services and Education"
"Type of Retail Store","Grocery Stores/Supermarkets","Tesco Stores 2322","Supplies and Services related expenditure","14/01/2021","30","Director of Children's Services and Education"
"Type of Retail Store","Grocery Stores/Supermarkets","Tesco Stores 2322","Supplies and Services related expenditure","14/01/2021","30","Director of Children's Services and Education"
"Type of Retail Store","Grocery Stores/Supermarkets","Tesco Stores 2322","Supplies and Services related expenditure","14/01/2021","50","Director of Children's Services and Education"
"Type of Retail Store","Grocery Stores/Supermarkets","Tesco Stores 2322","Supplies and Services related expenditure","14/01/2021","60","Director of Children's Services and Education"
"Facilities/Repair Supplies","Home Supply Warehouse Stores","B & Q 1260","Supplies and Services related expenditure","14/01/2021","208.85","Director of Housing, Neighbourhood and Building Services"
"Other Supplies","Misc Speciality Retail","Amznmktplace","Supplies and Services related expenditure","14/01/2021","14.56","Director of Housing, Neighbourhood and Building Services"
"Government Service","Govt Serv - Default","Dvla Driver Online","Supplies and Services related expenditure","14/01/2021","34","Director of Children's Services and Education"
"Other Supplies","Catalog Merchant","Www.Nisbets.Com","Supplies and Services related expenditure","14/01/2021","51.54","Director of Adult Services"
"Other Supplies","Catalog Merchant","Www.Nisbets.Com","Supplies and Services related expenditure","14/01/2021","46.56","Director of Adult Services"
"Other Supplies","Catalog Merchant","Www.Nisbets.Com","Supplies and Services related expenditure","14/01/2021","19.46","Director of Adult Services"
"Facilities/Repair Supplies","Lumber/Build. Supply Stores","Screwfix Direct","Premises related expenditure","14/01/2021","12.49","Director of Portsmouth International Port"
"Business To Business Facility/","Hardware Equipment/Supplies","Croma Locksmiths & Sec","Premises related expenditure","14/01/2021","143.5","Director of Portsmouth International Port"
"Facilities/Repair Services","Roofing/Siding/Sheet Metal","Aalco (Southampton)","Premises related expenditure","14/01/2021","567.5","Director of Portsmouth International Port"
"Other Supplies","Misc Speciality Retail","Amznbusiness","Supplies and Services related expenditure","14/01/2021","12.29","Director of Children's Services and Education"
"Business To Business Facility/","Industrial Supplies - Def","Arco Limited (Ahpp)","Supplies and Services related expenditure","14/01/2021","17.28","Director of Portsmouth International Port"
"Personal Service Provider","Professional Services - Def","Iz *vespasian Secu","Agency and Third Party Payments related expenditure","14/01/2021","854.5","Director of Portsmouth International Port"
"Other Supplies","Catalog Merchant","Www.Nisbets.Com","Supplies and Services related expenditure","14/01/2021","35.58","Director of Adult Services"
"Other Supplies","Wholesale Clubs","Makro Self Service Fareha","Premises related expenditure","14/01/2021","89.41","Director of Children's Services and Education"
"Business To Business Facility/","Hardware Equipment/Supplies","Croma Locksmiths & Sec","Supplies and Services related expenditure","14/01/2021","132.7","Director of Housing, Neighbourhood and Building Services"
"Facilities/Repair Supplies","Hardware Stores","Paypal","Premises related expenditure","14/01/2021","79.53","Director of Housing, Neighbourhood and Building Services"
"Type of Retail Store","Grocery Stores/Supermarkets","Tesco Gift Card","Supplies and Services related expenditure","14/01/2021","50","Director of Children's Services and Education"
"Medical","Lab/Med/Hospital Equipment","Wightman & Parrish","Premises related expenditure","14/01/2021","27.9","Director of Regeneration"
"Business To Business Eqpt/Furn","Commercial Furniture","Demco Europe","Supplies and Services related expenditure","14/01/2021","123.25","Director of Children's Services and Education"
"Business To Business Services","Misc Publishing & Printing","Vistaprint","Supplies and Services related expenditure","14/01/2021","22.64","Director of Children's Services and Education"
"Digital Goods","Digital Goods - Applications (Excludes Games)","Cba*corel","Supplies and Services related expenditure","14/01/2021","58.33","Director of Culture, Leisure & Regulatory Services"
"Business To Business Eqpt/Furn","Stationery/Office Supplies","Www.Banneruk.Com","Supplies and Services related expenditure","14/01/2021","52.96","Director of Housing, Neighbourhood and Building Services"
"Miscellaneous","Veterinary Service","Harbour Veterinary Hos","Supplies and Services related expenditure","14/01/2021","239.92","Director of Housing, Neighbourhood and Building Services"
"Type of Retail Store","Grocery Stores/Supermarkets","Tesco Stores 4579","Agency and Third Party Payments related expenditure","14/01/2021","16.67","Director of Children's Services and Education"
"Miscellaneous","Other Direct Marketers","Amazon.Co.Uk","Agency and Third Party Payments related expenditure","14/01/2021","17.94","Director of Children's Services and Education"
"Other Supplies","Misc Speciality Retail","Amznmktplace","Supplies and Services related expenditure","14/01/2021","17.26","Director of Children's Services and Education"
"Other Supplies","Misc Speciality Retail","Amznmktplace","Supplies and Services related expenditure","14/01/2021","17.26","Director of Children's Services and Education"
"Other Supplies","Misc Speciality Retail","Amznmktplace Amazon.Co.Uk","Supplies and Services related expenditure","14/01/2021","17.26","Director of Children's Services and Education"
"Personal Service Provider","Accountants/Auditors/Bookpr","Www.Aat-Org.Uk","Supplies and Services related expenditure","14/01/2021","101","Director of Finance & Resources"
"Personal Service Provider","Accountants/Auditors/Bookpr","Www.Aat-Org.Uk","Supplies and Services related expenditure","14/01/2021","101","Director of Finance & Resources"
"Type of Retail Store","Grocery Stores/Supermarkets","Asda Superstore","Supplies and Services related expenditure","14/01/2021","2.01","Director of Adult Services"
"Type of Retail Store","Grocery Stores/Supermarkets","Asda Superstore","Supplies and Services related expenditure","14/01/2021","2.08","Director of Adult Services"
"Facilities/Repair Supplies","Lumber/Build. Supply Stores","Wurth UK Limited","Premises related expenditure","14/01/2021","58","Director of Culture, Leisure & Regulatory Services"
"Facilities/Repair Supplies","Home Supply Warehouse Stores","B & Q 1260","Supplies and Services related expenditure","14/01/2021","119.05","Director of Housing, Neighbourhood and Building Services"
"Facilities/Repair Supplies","Home Supply Warehouse Stores","B & Q 1260","Capital related expenditure","14/01/2021","30.6","Capital - Housing RA"
"Other Supplies","Misc Speciality Retail","Amznmktplace","Supplies and Services related expenditure","14/01/2021","3.88","Director of Adult Services"
"Other Supplies","Misc Speciality Retail","Amznmktplace","Supplies and Services related expenditure","14/01/2021","15.48","Director of Adult Services"
"Type of Retail Store","Freezer/Meat Lockers","Solent Butchers","Supplies and Services related expenditure","14/01/2021","468.63","Director of Adult Services"
"Type of Retail Store","Freezer/Meat Lockers","Dennis Edwards Food Serv","Supplies and Services related expenditure","14/01/2021","69.69","Director of Adult Services"
"Type of Retail Store","Freezer/Meat Lockers","Dennis Edwards Food Serv","Supplies and Services related expenditure","14/01/2021","831.73","Director of Adult Services"
"Other Supplies","Misc Speciality Retail","Medisupplies Ltd","Supplies and Services related expenditure","14/01/2021","83.85","Director of Adult Services"
"Other Supplies","Misc Speciality Retail","Amznmktplace","Supplies and Services related expenditure","14/01/2021","17.91","Director of Adult Services"
"Other Supplies","Misc Speciality Retail","Amznmktplace","Supplies and Services related expenditure","14/01/2021","17","Director of Adult Services"
"Miscellaneous","Other Direct Marketers","Amazon.Co.Uk","Supplies and Services related expenditure","14/01/2021","34.55","Director of Children's Services and Education"
"Miscellaneous","Other Direct Marketers","Amazon.Co.Uk","Supplies and Services related expenditure","14/01/2021","34.55","Director of Children's Services and Education"
"Miscellaneous","Other Direct Marketers","Amazon.Co.Uk","Supplies and Services related expenditure","14/01/2021","34.55","Director of Children's Services and Education"
"Other Supplies","Misc Speciality Retail","Amznmktplace","Supplies and Services related expenditure","14/01/2021","2.03","Director of Housing, Neighbourhood and Building Services"
"Business To Business Eqpt/Furn","Stationery/Office Supplies","Www.Banneruk.Com","Supplies and Services related expenditure","14/01/2021","357.95","Director of Housing, Neighbourhood and Building Services"
"Business To Business Eqpt/Furn","Stationery/Office Supplies","Www.Banneruk.Com","Supplies and Services related expenditure","14/01/2021","126.27","Director of Housing, Neighbourhood and Building Services"
"Facilities/Repair Supplies","Home Supply Warehouse Stores","B & Q 1260","Supplies and Services related expenditure","14/01/2021","5.87","Director of Culture, Leisure & Regulatory Services"
"Utility","Phone Serv/Equip Utility","Zoom.Us 888-799-9666","Supplies and Services related expenditure","14/01/2021","11.99","Director of Corporate Services"
"Eating And Drinking Places","Fast Food Restaurants","McDonalds","Premises related expenditure","14/01/2021","4.16","Director of Children's Services and Education"
"Personal Service Provider","Real Estate Agents And Managers","Wm Morrisons Ho Credit","Supplies and Services related expenditure","14/01/2021","512.5","Director of Children's Services and Education"
"Hotels And Motels","Travelodge","Travelodge Gb0000","Agency and Third Party Payments related expenditure","14/01/2021","40.78","Director of Housing, Neighbourhood and Building Services"
"Miscellaneous","Continuity/Subscription Mercht","Zoom.Gbp","Supplies and Services related expenditure","14/01/2021","-320.68","Solent LEP"
"Business To Business Facility/","Hardware Equipment/Supplies","Www.Cromwell.Co.Uk","Supplies and Services related expenditure","14/01/2021","95","Director of Children's Services and Education"
"Business To Business Eqpt/Furn","Computer Software Stores","Appliancedirect Co","Supplies and Services related expenditure","14/01/2021","184.14","Director of Housing, Neighbourhood and Building Services"
"Other Supplies","Misc Speciality Retail","Amznmktplace","Supplies and Services related expenditure","14/01/2021","64.64","Director of Children's Services and Education"
"Other Supplies","Misc Speciality Retail","Amznmktplace","Supplies and Services related expenditure","14/01/2021","260.1","Director of Children's Services and Education"
"Business To Business Facility/","Industrial Supplies - Def","Bin Shop","Premises related expenditure","14/01/2021","55","Director of Adult Services"
"Type of Retail Store","Grocery Stores/Supermarkets","Tesco Store 3048","Supplies and Services related expenditure","14/01/2021","16.99","Director of Children's Services and Education"
"Other Supplies","Misc Speciality Retail","Amznmktplace","Supplies and Services related expenditure","14/01/2021","29.68","Director of Culture, Leisure & Regulatory Services"
"Business To Business Facility/","Industrial Supplies - Def","Arco Limited (Sap)","Supplies and Services related expenditure","14/01/2021","28.22","Director of Housing, Neighbourhood and Building Services"
"Other Supplies","Misc Speciality Retail","Amznmktplace","Supplies and Services related expenditure","14/01/2021","29.99","Director of Children's Services and Education"
"Equipment And Furniture","Household Appliance Stores","Manomano","Supplies and Services related expenditure","14/01/2021","141.54","Director of Regeneration"
"Amusement/Entertainment","Aquariums/Seaquariums","Blue Reef Aquarium","Agency and Third Party Payments related expenditure","14/01/2021","200","Director of Regeneration"
"Business Expenses/Services","Postage Stamps","Post Office Counter","Supplies and Services related expenditure","14/01/2021","16.12","Director of Culture, Leisure & Regulatory Services"
"Government Service","Colleges/Univ/Jc/Profession","Gls Educational Su","Supplies and Services related expenditure","14/01/2021","67.16","Director of Children's Services and Education"
"Government Service","Govt Serv - Default","Hampshire County Counc","Supplies and Services related expenditure","14/01/2021","67.2","Director of Children's Services and Education"
"Other Supplies","Misc Speciality Retail","Amznmktplace","Supplies and Services related expenditure","14/01/2021","5.78","Director of Children's Services and Education"
"Business To Business Eqpt/Furn","Stationery/Office Supplies","Www.Banneruk.Com","Supplies and Services related expenditure","14/01/2021","1018.4","Director of Corporate Services"
"Business To Business Eqpt/Furn","Stationery/Office Supplies","Www.Banneruk.Com","Supplies and Services related expenditure","14/01/2021","34.39","Director of Housing, Neighbourhood and Building Services"
"Business To Business Facility/","Industrial Supplies - Def","Arco Limited (Sap)","Supplies and Services related expenditure","12/01/2021","24.9","Director of Regeneration"
"Business To Business Eqpt/Furn","Computers/Peripherals/Software","Hp Inc UK Limited","Supplies and Services related expenditure","14/01/2021","166.66","Director of Children's Services and Education"
"Utility","Cable/Pay Tv Services","Sky Subscription","Supplies and Services related expenditure","14/01/2021","74","Director of Children's Services and Education"
"Other Supplies","Misc Speciality Retail","Amznbusiness","Supplies and Services related expenditure","14/01/2021","37.99","Director of Children's Services and Education"
"Clothing Services","Womens Ready To Wear Stores","New Look Internet","Supplies and Services related expenditure","14/01/2021","21.73","Director of Children's Services and Education"
"Business To Business Facility/","Electrical Parts/Equipment","Rs Components","Supplies and Services related expenditure","14/01/2021","80.55","Director of Regeneration"
"Government Service","Govt Serv - Default","Waterfront Garden Cent","Supplies and Services related expenditure","14/01/2021","28","Director of Culture, Leisure & Regulatory Services"
"Business To Business Facility/","Industrial Supplies - Def","Arco Limited (Sap)","Supplies and Services related expenditure","14/01/2021","203.78","Director of Children's Services and Education"
"Transportation Conveyor","Passenger Railways","Trainline","Premises related expenditure","15/01/2021","76.36","Director of Housing, Neighbourhood and Building Services"
"Freight/Courier/Warehouse Svcs","Public Warehousing","Big Yellow - Portsmout","Premises related expenditure","15/01/2021","38","Director of Housing, Neighbourhood and Building Services"
"Freight/Courier/Warehouse Svcs","Public Warehousing","Big Yellow - Portsmout","Premises related expenditure","15/01/2021","263.33","Director of Housing, Neighbourhood and Building Services"
"Freight/Courier/Warehouse Svcs","Public Warehousing","Www.Safestore.Co.Uk","Premises related expenditure","15/01/2021","68.2","Director of Housing, Neighbourhood and Building Services"
"Freight/Courier/Warehouse Svcs","Public Warehousing","Www.Safestore.Co.Uk","Premises related expenditure","15/01/2021","80.6","Director of Housing, Neighbourhood and Building Services"
"Freight/Courier/Warehouse Svcs","Public Warehousing","Www.Safestore.Co.Uk","Premises related expenditure","15/01/2021","471.67","Director of Housing, Neighbourhood and Building Services"
"Facilities/Repair Supplies","Lumber/Build. Supply Stores","Screwfix Direct","Capital related expenditure","15/01/2021","318.1","Capital - Housing RA"
"Business To Business Eqpt/Furn","Stationery/Office Supplies","Www.Banneruk.Com","Supplies and Services related expenditure","15/01/2021","5.08","Director of Housing, Neighbourhood and Building Services"
"Type of Retail Store","Grocery Stores/Supermarkets","Tesco Stores 4579","Supplies and Services related expenditure","15/01/2021","70","Director of Housing, Neighbourhood and Building Services"
"Facilities/Repair Supplies","Lawn/Garden Supply/Nursery","Bourne Amenity Limited","Supplies and Services related expenditure","15/01/2021","699.8","Director of Culture, Leisure & Regulatory Services"
"Other Supplies","Misc Speciality Retail","Amz*bode","Supplies and Services related expenditure","15/01/2021","-13.33","Director of Children's Services and Education"
"Other Supplies","Misc Speciality Retail","Amz*aodiar","Supplies and Services related expenditure","15/01/2021","-54.15","Director of Children's Services and Education"
"Government Service","Govt Serv - Default","Portsmouth City Co","Transport related expenditure","15/01/2021","63.33","Director of Adult Services"
"Type of Retail Store","Grocery Stores/Supermarkets","Tesco Stores 4579","Premises related expenditure","15/01/2021","8.33","Director of Children's Services and Education"
"Type of Retail Store","Grocery Stores/Supermarkets","Tesco Stores 4579","Supplies and Services related expenditure","15/01/2021","5","Director of Children's Services and Education"
"Type of Retail Store","Grocery Stores/Supermarkets","Tesco Stores 4579","Supplies and Services related expenditure","15/01/2021","25.67","Director of Children's Services and Education"
"Type of Retail Store","Grocery Stores/Supermarkets","Sainsburys S/mkt","Supplies and Services related expenditure","15/01/2021","5.42","Director of Children's Services and Education"
"Type of Retail Store","Grocery Stores/Supermarkets","Sainsburys S/mkt","Supplies and Services related expenditure","15/01/2021","50","Director of Children's Services and Education"
"Business Expenses/Services","Postage Stamps","Post Office Counter","Supplies and Services related expenditure","15/01/2021","3.06","Director of Adult Services"
"Business Services","Advertising Services","Business Builders Sout","Supplies and Services related expenditure","15/01/2021","276","Director of Corporate Services"
"Facilities/Repair Supplies","Lawn/Garden Supply/Nursery","Havant Mowers & Garden M","Premises related expenditure","15/01/2021","81","Director of Children's Services and Education"
"Transportation Conveyor","Taxicabs/Limousines","Sq *alpha Cars Havant","Transport related expenditure","15/01/2021","17","Director of Children's Services and Education"
"Transportation Conveyor","Taxicabs/Limousines","Sq *alpha Cars Havant","Transport related expenditure","15/01/2021","17","Director of Children's Services and Education"
"Transportation Conveyor","Local Commuter Transport","Www.Hovertravel.Com","Transport related expenditure","15/01/2021","24.6","Director of Children's Services and Education"
"Business Services","Business Services - Default","Eb *trc Conference 202","Supplies and Services related expenditure","15/01/2021","119.17","Director of Children's Services and Education"
"Type of Retail Store","Grocery Stores/Supermarkets","Lidl Gb Portsmouth","Premises related expenditure","15/01/2021","2.5","Director of Housing, Neighbourhood and Building Services"
"Miscellaneous","Charitable/Soc Service Orgs","Guide Dogs","Supplies and Services related expenditure","15/01/2021","11.99","Director of Culture, Leisure & Regulatory Services"
"Utility","Phone Serv/Equip Utility","Vesta","Supplies and Services related expenditure","15/01/2021","16.67","Director of Children's Services and Education"
"Hotels And Motels","Travelodge","Travelodge Gb0826","Supplies and Services related expenditure","15/01/2021","113.75","Director of Children's Services and Education"
"Business Expenses/Services","Postage Stamps","Post Office Counter","Supplies and Services related expenditure","15/01/2021","7.92","Director of Adult Services"
"Business Expenses/Services","Postage Stamps","Post Office Counter","Supplies and Services related expenditure","15/01/2021","321","Director of Adult Services"
"Type of Retail Store","Grocery Stores/Supermarkets","Wm Morrisons Store","Supplies and Services related expenditure","15/01/2021","3.33","Director of Housing, Neighbourhood and Building Services"
"Eating And Drinking Places","Eating Places/Restaurants","Dominos Pizza","Supplies and Services related expenditure","15/01/2021","8.73","Director of Children's Services and Education"
"Business To Business Facility/","Electrical Parts/Equipment","Edmundson Electrical","Premises related expenditure","15/01/2021","67.2","Director of Portsmouth International Port"
"Business To Business Facility/","Electrical Parts/Equipment","Edmundson Electrical","Premises related expenditure","15/01/2021","390.74","Director of Portsmouth International Port"
"Other Supplies","Misc Speciality Retail","Amznmktplace","Supplies and Services related expenditure","15/01/2021","153.32","Director of Portsmouth International Port"
"Other Supplies","Misc Speciality Retail","Amznmktplace","Supplies and Services related expenditure","15/01/2021","33.32","Director of Children's Services and Education"
"Government Service","Govt Serv - Default","Hampshire County Counc","Supplies and Services related expenditure","15/01/2021","46.45","Director of Children's Services and Education"
"Business Expenses/Services","Postage Stamps","Post Office Counter","Supplies and Services related expenditure","15/01/2021","11.25","Director of Children's Services and Education"
"Business To Business Other Sup","Uniforms & Commercial Clothing","Seasafe Systems","Supplies and Services related expenditure","15/01/2021","798.6","Director of Portsmouth International Port"
"Other Supplies","Catalog Merchant","Www.Nisbets.Com","Supplies and Services related expenditure","15/01/2021","611.2","Director of Adult Services"
"Other Supplies","Misc Speciality Retail","Amznmktplace","Supplies and Services related expenditure","15/01/2021","30.46","Director of Housing, Neighbourhood and Building Services"
"Other Supplies","Misc Speciality Retail","Amznmktplace","Supplies and Services related expenditure","15/01/2021","31.64","Director of Housing, Neighbourhood and Building Services"
"Facilities/Repair Services","Spec Contractors - Default","Christie Intruder Alar","Supplies and Services related expenditure","15/01/2021","88.71","Director of Housing, Neighbourhood and Building Services"
"Facilities/Repair Supplies","Lawn/Garden Supply/Nursery","Www.Hampshiregarde","Supplies and Services related expenditure","15/01/2021","239.57","Director of Culture, Leisure & Regulatory Services"
"Freight/Courier/Warehouse Svcs","Motor Freight Carriers","Www Anyvan Com","Supplies and Services related expenditure","15/01/2021","138.83","Director of Children's Services and Education"
"Government Service","Govt Serv - Default","Dvla Driver Online","Supplies and Services related expenditure","15/01/2021","34","Director of Housing, Neighbourhood and Building Services"
"Government Service","Govt Serv - Default","Dvla Driver Online","Supplies and Services related expenditure","15/01/2021","34","Director of Housing, Neighbourhood and Building Services"
"Other Supplies","Misc Speciality Retail","Amznmktplace Amazon.Co.Uk","Supplies and Services related expenditure","15/01/2021","1.62","Director of Adult Services"
"Type of Retail Store","Drug Stores & Pharmacies","Savers Health & Beauty","Supplies and Services related expenditure","15/01/2021","8.16","Director of Housing, Neighbourhood and Building Services"
"Other Supplies","Misc Speciality Retail","Amznmktplace","Supplies and Services related expenditure","15/01/2021","20.49","Director of Children's Services and Education"
"Other Supplies","Misc Speciality Retail","Amznmktplace","Supplies and Services related expenditure","15/01/2021","20.85","Director of Children's Services and Education"
"Business To Business Eqpt/Furn","Commercial Furniture","Www.Bestbuyofficechair","Supplies and Services related expenditure","15/01/2021","53","Director of Children's Services and Education"
"Transportation Conveyor","Passenger Railways","Se Online Web","Transport related expenditure","15/01/2021","45.2","Director of Children's Services and Education"
"Business To Business Eqpt/Furn","Stationery/Office Supplies","Www.Banneruk.Com","Supplies and Services related expenditure","15/01/2021","131.58","Director of Housing, Neighbourhood and Building Services"
"Auto/Vehicle Expenses","Automated Fuel Dispensers","Sainsburys S/Mkts","Transport related expenditure","15/01/2021","54.41","Director of Children's Services and Education"
"Facilities/Repair Supplies","Home Supply Warehouse Stores","B & Q 1260","Supplies and Services related expenditure","15/01/2021","5.47","Director of Housing, Neighbourhood and Building Services"
"Business To Business Facility/","Hardware Equipment/Supplies","Croma Locksmiths & Sec","Supplies and Services related expenditure","15/01/2021","66.15","Director of Housing, Neighbourhood and Building Services"
"Business To Business Eqpt/Furn","Stationery/Office Supplies","Www.Banneruk.Com","Supplies and Services related expenditure","15/01/2021","30.52","Director of Adult Services"
"Automobile Services & Supplies","Service Stations","Shell Cross Roads","Transport related expenditure","15/01/2021","74.3","Director of Adult Services"
"Type of Retail Store","Grocery Stores/Supermarkets","Fruit Basket Ltd","Supplies and Services related expenditure","15/01/2021","230.83","Director of Adult Services"
"Type of Retail Store","Freezer/Meat Lockers","Dennis Edwards Food Serv","Supplies and Services related expenditure","15/01/2021","767.42","Director of Adult Services"
"Type of Retail Store","Freezer/Meat Lockers","Dennis Edwards Food Serv","Supplies and Services related expenditure","15/01/2021","51.4","Director of Adult Services"
"Medical","Lab/Med/Hospital Equipment","Wightman & Parrish Ltd","Supplies and Services related expenditure","15/01/2021","390.58","Director of Adult Services"
"Medical","Lab/Med/Hospital Equipment","Wightman & Parrish Ltd","Premises related expenditure","15/01/2021","387.1","Director of Adult Services"
"Business To Business Eqpt/Furn","Stationery/Office Supplies","Www.Banneruk.Com","Supplies and Services related expenditure","15/01/2021","93.28","Director of Housing, Neighbourhood and Building Services"
"Miscellaneous","Charitable/Soc Service Orgs","British Red Cross","Supplies and Services related expenditure","15/01/2021","151.2","Director of Housing, Neighbourhood and Building Services"
"Miscellaneous","Charitable/Soc Service Orgs","British Red Cross","Supplies and Services related expenditure","15/01/2021","151.2","Director of Housing, Neighbourhood and Building Services"
"Utility","Phone Serv/Equip Utility","Zoom.Us 888-799-9666","Supplies and Services related expenditure","15/01/2021","159.9","Director of Children's Services and Education"
"Facilities/Repair Supplies","Home Supply Warehouse Stores","B & Q 1260","Supplies and Services related expenditure","15/01/2021","21.42","Director of Adult Services"
"Type of Retail Store","Music Stores/Pianos","Www.Starshine.Co.Uk","Supplies and Services related expenditure","15/01/2021","25","Director of Children's Services and Education"
"Automobile Services & Supplies","Service Stations","Tesco Pfs 2339","Supplies and Services related expenditure","15/01/2021","6.45","Director of Children's Services and Education"
"Other Supplies","Misc Gen Merchandise - Def","Wilko Retail Limited","Supplies and Services related expenditure","15/01/2021","29.63","Director of Children's Services and Education"
"Other Supplies","Misc Speciality Retail","Amznmktplace","Premises related expenditure","15/01/2021","14.99","Director of Children's Services and Education"
"Other Supplies","Misc Speciality Retail","Amznmktplace","Premises related expenditure","15/01/2021","7.49","Director of Culture, Leisure & Regulatory Services"
"Other Supplies","Misc Speciality Retail","Amznmktplace","Supplies and Services related expenditure","15/01/2021","8.74","Director of Culture, Leisure & Regulatory Services"
"Other Supplies","Misc Speciality Retail","Amznmktplace","Supplies and Services related expenditure","15/01/2021","5.62","Director of Culture, Leisure & Regulatory Services"
"Other Supplies","Misc Speciality Retail","Amznmktplace","Supplies and Services related expenditure","15/01/2021","13.53","Director of Culture, Leisure & Regulatory Services"
"Auto/Vehicle Expenses","Auto Service Shops/Non Dealer","Solent Motor Services","Transport related expenditure","15/01/2021","25","Director of Housing, Neighbourhood and Building Services"
"Facilities/Repair Supplies","Home Supply Warehouse Stores","Paypal","Supplies and Services related expenditure","15/01/2021","29.16","Director of Regeneration"
"Facilities/Repair Supplies","Hardware Stores","Robert Dyas Holdng Ltd","Supplies and Services related expenditure","15/01/2021","88.21","Director of Regeneration"
"Business Expenses/Services","Postage Stamps","Post Office Counter","Supplies and Services related expenditure","15/01/2021","1.97","Director of Culture, Leisure & Regulatory Services"
"Business Expenses/Services","Courier Services","Parcelforce Wl","Supplies and Services related expenditure","15/01/2021","19.5","Director of Culture, Leisure & Regulatory Services"
"Eating And Drinking Places","Fast Food Restaurants","Dominos Pizza","Agency and Third Party Payments related expenditure","15/01/2021","9.63","Director of Children's Services and Education"
"Eating And Drinking Places","Fast Food Restaurants","McDonalds","Agency and Third Party Payments related expenditure","15/01/2021","21.46","Director of Children's Services and Education"
"Eating And Drinking Places","Fast Food Restaurants","McDonalds","Agency and Third Party Payments related expenditure","15/01/2021","3.58","Director of Children's Services and Education"
"Type of Retail Store","Grocery Stores/Supermarkets","Sainsburys S/mkt","Supplies and Services related expenditure","15/01/2021","15.88","Director of Children's Services and Education"
"Type of Retail Store","Grocery Stores/Supermarkets","Sainsburys S/mkt","Supplies and Services related expenditure","15/01/2021","18.5","Director of Children's Services and Education"
"Other Supplies","Misc Gen Merchandise - Def","Wilko Retail Limited","Transport related expenditure","16/01/2021","8.33","Director of Regeneration"
"Auto/Vehicle Expenses","Automated Fuel Dispensers","Tesco Pay At Pump 4274","Transport related expenditure","16/01/2021","58.69","Director of Regeneration"
"Type of Retail Store","Grocery Stores/Supermarkets","Asda Stores","Supplies and Services related expenditure","16/01/2021","11.32","Director of Children's Services and Education"
"Type of Retail Store","Grocery Stores/Supermarkets","Fratton Hallal Food","Supplies and Services related expenditure","16/01/2021","13.95","Director of Children's Services and Education"
"Other Supplies","Misc Speciality Retail","Amznmktplace","Supplies and Services related expenditure","16/01/2021","98.04","Director of Children's Services and Education"
"Type of Retail Store","Grocery Stores/Supermarkets","Wm Morrisons Store","Supplies and Services related expenditure","16/01/2021","62.69","Director of Children's Services and Education"
"Business Services","Advertising Services","Facebk Kmxzqy68z2","Supplies and Services related expenditure","16/01/2021","300","Director of Corporate Services"
"Clothing Services","Family Clothing Stores","Www.Asos.Com","Supplies and Services related expenditure","16/01/2021","35.2","Director of Children's Services and Education"
"Type of Retail Store","Grocery Stores/Supermarkets","Wm Morrisons Store","Supplies and Services related expenditure","16/01/2021","15.08","Director of Children's Services and Education"
"Type of Retail Store","Grocery Stores/Supermarkets","Wm Morrisons Store","Supplies and Services related expenditure","16/01/2021","14.17","Director of Children's Services and Education"
"Type of Retail Store","Grocery Stores/Supermarkets","Wm Morrisons Store","Supplies and Services related expenditure","16/01/2021","57.79","Director of Children's Services and Education"
"Utility","Phone Serv/Equip Utility","Smarty Co Uk","Supplies and Services related expenditure","16/01/2021","12","Director of Children's Services and Education"
"Type of Retail Store","Grocery Stores/Supermarkets","Www.Iceland.Co.Uk","Supplies and Services related expenditure","16/01/2021","65.98","Director of Adult Services"
"Facilities/Repair Supplies","Lumber/Build. Supply Stores","Screwfix Direct","Premises related expenditure","16/01/2021","14.99","Director of Adult Services"
"Type of Retail Store","Grocery Stores/Supermarkets","Tesco Stores 4579","Agency and Third Party Payments related expenditure","16/01/2021","0.67","Director of Children's Services and Education"
"Type of Retail Store","Grocery Stores/Supermarkets","Tesco Stores 4579","Supplies and Services related expenditure","16/01/2021","4.99","Director of Children's Services and Education"
"Type of Retail Store","Grocery Stores/Supermarkets","Amazon.Co.Uk","Supplies and Services related expenditure","16/01/2021","41.44","Director of Children's Services and Education"
"Business To Business Facility/","Industrial Supplies - Def","Arco Limited (Sap)","Supplies and Services related expenditure","16/01/2021","28.22","Director of Housing, Neighbourhood and Building Services"
"Other Supplies","Misc Speciality Retail","Amznbusiness","Supplies and Services related expenditure","17/01/2021","10.66","Director of Housing, Neighbourhood and Building Services"
"Personal Service Provider","Computer Program/Sys Design","Formlets Small Bus","Supplies and Services related expenditure","17/01/2021","13.68","Director of Housing, Neighbourhood and Building Services"
"Equipment And Furniture","Household Appliance Stores","Tlc Southern","Supplies and Services related expenditure","17/01/2021","74.6","Director of Housing, Neighbourhood and Building Services"
"Automobile Services & Supplies","Service Stations","Milton Road Servic","Premises related expenditure","17/01/2021","1.08","Director of Children's Services and Education"
"Other Supplies","Misc Speciality Retail","Amznmktplace","Supplies and Services related expenditure","17/01/2021","21.24","Director of Regeneration"
"Miscellaneous","Continuity/Subscription Mercht","Linkedin 6243695534","Supplies and Services related expenditure","17/01/2021","149.9","Director of Corporate Services"
"Business To Business Facility/","Industrial Supplies - Def","Protec Direct","Supplies and Services related expenditure","17/01/2021","15.42","Director of Regeneration"
"Miscellaneous","Continuity/Subscription Mercht","Tesco Subscription","Supplies and Services related expenditure","17/01/2021","6.99","Director of Children's Services and Education"
"Eating And Drinking Places","Pkg Stores/Beer/Wine/Liquor","Krishna","Supplies and Services related expenditure","17/01/2021","3","Director of Children's Services and Education"
"Business Services","Advertising Services","Facebk *j86lqysxd2","Supplies and Services related expenditure","17/01/2021","60","Director of Corporate Services"
"Other Supplies","Misc Speciality Retail","Amznmktplace","Premises related expenditure","17/01/2021","20.82","Director of Children's Services and Education"
"Type of Retail Store","Grocery Stores/Supermarkets","Asda Groceries Online","Supplies and Services related expenditure","17/01/2021","-1","Director of Adult Services"
"Type of Retail Store","Grocery Stores/Supermarkets","Asda Groceries Online","Supplies and Services related expenditure","17/01/2021","6.24","Director of Adult Services"
"Type of Retail Store","Grocery Stores/Supermarkets","Asda Groceries Online","Supplies and Services related expenditure","17/01/2021","102.08","Director of Adult Services"
"Other Supplies","Misc Speciality Retail","Amznmktplace","Supplies and Services related expenditure","17/01/2021","32.85","Director of Housing, Neighbourhood and Building Services"
